EXTRACTDATE,PUBLISHERURI,ORGANISATIONLABEL,EXPENSE DATE,VENDOR NAME ,COST CENTRE NAME,SUBJECTIVE DESCRIPTION,REQUESTED EXPENSE AMOUNT
08/06/2023,,LB of Brent,01/03/2023,Tesco Stores 2122,Short Break Centre,Supplies and Services Expenditure,110.92
08/06/2023,,LB of Brent,01/03/2023,Www.Adass.Org.Uk,Social Services Directorate,Human Resources - Training and Conferences,144.00
08/06/2023,,LB of Brent,01/03/2023,Calendly,Brent Music Service,Supplies and Services Expenditure,8.57
08/06/2023,,LB of Brent,01/03/2023,Gsuite_bmsstaff.Com,Brent Music Service,Supplies and Services Expenditure,55.20
08/06/2023,,LB of Brent,01/03/2023,Www.Fabricinspirations,Fostering Support Team B,Supplies and Services Expenditure,25.50
08/06/2023,,LB of Brent,01/03/2023,Printedtoday,Fostering Support Team B,Supplies and Services Expenditure,44.48
08/06/2023,,LB of Brent,01/03/2023,Google Ads5773723439,Fostering Support Team B,Supplies and Services Expenditure,62.18
08/06/2023,,LB of Brent,01/03/2023,Sainsburys Wembley,Wembley Park Co-Working Space,Stationery,14.80
08/06/2023,,LB of Brent,01/03/2023,Lidl Gb London,Wembley Park Co-Working Space,Stationery,15.11
08/06/2023,,LB of Brent,01/03/2023,Amznmktplace,Legal Support,Stationery,53.33
08/06/2023,,LB of Brent,01/03/2023,Ikea Ltd Shop Online,Syrian Refugees Project,Supplies and Services Expenditure,339.00
08/06/2023,,LB of Brent,01/03/2023,Intellisoftware Ltd,IT Operations,Information Communication Technology,12.00
08/06/2023,,LB of Brent,01/03/2023,Flickr Pro Monthly,Digital Comms,Supplies and Services Expenditure,6.99
08/06/2023,,LB of Brent,01/03/2023,Hmcts Westlondon073,Revenues,Supplies and Services Expenditure,423.00
08/06/2023,,LB of Brent,01/03/2023,Tesco Stores 2122,Brent Family Solutions,Supplies and Services Expenditure,60.00
08/06/2023,,LB of Brent,01/03/2023,Trainline,Housing Needs Housing Options Team,Supplies and Services Expenditure,41.49
08/06/2023,,LB of Brent,01/03/2023,Lidl Gb London,ICP Transformation Team,Supplies and Services Expenditure,7.66
08/06/2023,,LB of Brent,02/03/2023,Msft * E0600mdbi1,IT Operations,Supplies and Services Expenditure,5.40
08/06/2023,,LB of Brent,01/03/2023,Premier Inn,Neighbourhood Services - Estate Services,Supplies and Services Expenditure,592.95
08/06/2023,,LB of Brent,02/03/2023,Xl Displays Ltd,Community Shop Prototype,Stationery,907.20
08/06/2023,,LB of Brent,02/03/2023,Ikea Ltd 141 Wembley Main,Parish Liaison,Financial Services,162.00
08/06/2023,,LB of Brent,02/03/2023,Amazon Prime,Willows Nursery,Supplies and Services Expenditure,8.99
08/06/2023,,LB of Brent,02/03/2023,Sainsburys Wembley,Brent Family Solutions,Supplies and Services Expenditure,70.00
08/06/2023,,LB of Brent,02/03/2023,Amznmktplace,Brent Family Solutions,Supplies and Services Expenditure,633.91
08/06/2023,,LB of Brent,02/03/2023,Amznmktplace,Brent Family Solutions,Supplies and Services Expenditure,634.92
08/06/2023,,LB of Brent,02/03/2023,Tesco Stores 2080,Gordon Brown Outdoor Education Centre,Supplies and Services Expenditure,76.06
08/06/2023,,LB of Brent,02/03/2023,Trainline,Housing Needs Housing Options Team,Supplies and Services Expenditure,82.39
08/06/2023,,LB of Brent,03/03/2023,Etsy.Com - Hattonincdesig,Fostering Support Team B,Supplies and Services Expenditure,20.99
08/06/2023,,LB of Brent,03/03/2023,Amznmktplace,Brent Family Solutions,Supplies and Services Expenditure,119.96
08/06/2023,,LB of Brent,03/03/2023,Amznmktplace,Brent Family Solutions,Supplies and Services Expenditure,119.96
08/06/2023,,LB of Brent,02/03/2023,Folkies Music,Brent Music Service,Supplies and Services Expenditure,10.50
08/06/2023,,LB of Brent,03/03/2023,Amazon Prime,TA Property Management,Supplies and Services Expenditure,-8.99
08/06/2023,,LB of Brent,03/03/2023,Tfl Oyster Auto Topup,HSG Central Serv - Housing Directorate,Supplies and Services Expenditure,20.00
08/06/2023,,LB of Brent,03/03/2023,Premier Inn,Bed and Breakfast,Supplies and Services Expenditure,490.96
08/06/2023,,LB of Brent,03/03/2023,Travelodge Gb0000,Bed and Breakfast,Supplies and Services Expenditure,550.72
08/06/2023,,LB of Brent,03/03/2023,High Street Vouchers,Fostering Support Team B,Supplies and Services Expenditure,20.00
08/06/2023,,LB of Brent,03/03/2023,Corambaaf,Childrens Social Care Business Support,Supplies and Services Expenditure,138.00
08/06/2023,,LB of Brent,03/03/2023,Amznmktplace,Brent Family Solutions,Supplies and Services Expenditure,51.92
08/06/2023,,LB of Brent,03/03/2023,Amznmktplace,Brent Family Solutions,Supplies and Services Expenditure,81.83
08/06/2023,,LB of Brent,03/03/2023,Amznmktplace,Brent Family Solutions,Supplies and Services Expenditure,119.92
08/06/2023,,LB of Brent,03/03/2023,Amznmktplace,Brent Family Solutions,Supplies and Services Expenditure,239.92
08/06/2023,,LB of Brent,03/03/2023,Amznmktplace,Brent Family Solutions,Supplies and Services Expenditure,519.70
08/06/2023,,LB of Brent,03/03/2023,Amz*tronic Solutions U,Brent Family Solutions,Supplies and Services Expenditure,-583.00
08/06/2023,,LB of Brent,03/03/2023,Amz*tronic Solutions U,Brent Family Solutions,Supplies and Services Expenditure,-583.00
08/06/2023,,LB of Brent,03/03/2023,Amz*tronic Solutions U,Brent Family Solutions,Supplies and Services Expenditure,-583.00
08/06/2023,,LB of Brent,03/03/2023,Amznmktplace,Brent Family Solutions,Supplies and Services Expenditure,650.95
08/06/2023,,LB of Brent,03/03/2023,Amznmktplace,Brent Family Solutions,Supplies and Services Expenditure,650.95
08/06/2023,,LB of Brent,03/03/2023,Amznmktplace,Brent Family Solutions,Supplies and Services Expenditure,650.95
08/06/2023,,LB of Brent,03/03/2023,Amznbusiness,Gordon Brown Outdoor Education Centre,Supplies and Services Expenditure,51.82
08/06/2023,,LB of Brent,04/03/2023,Tesco Stores 2122,Short Break Centre,Supplies and Services Expenditure,45.96
08/06/2023,,LB of Brent,04/03/2023,Amznmktplace,Brent Family Solutions,Supplies and Services Expenditure,39.92
08/06/2023,,LB of Brent,04/03/2023,Amz*the Game Collectio,Brent Family Solutions,Supplies and Services Expenditure,-67.95
08/06/2023,,LB of Brent,04/03/2023,Amz*the Game Collectio,Brent Family Solutions,Supplies and Services Expenditure,-67.95
08/06/2023,,LB of Brent,04/03/2023,Amz*the Game Collectio,Brent Family Solutions,Supplies and Services Expenditure,-67.95
08/06/2023,,LB of Brent,05/03/2023,Amz,Customer Access Improvement and Performance,Stationery,-259.96
08/06/2023,,LB of Brent,05/03/2023,Amznmktplace,Brent Family Solutions,Supplies and Services Expenditure,98.65
08/06/2023,,LB of Brent,05/03/2023,Amznmktplace,Brent Family Solutions,Supplies and Services Expenditure,401.97
08/06/2023,,LB of Brent,05/03/2023,Amznmktplace,Brent Family Solutions,Supplies and Services Expenditure,599.94
08/06/2023,,LB of Brent,05/03/2023,Amznmktplace,Brent Family Solutions,Supplies and Services Expenditure,743.88
08/06/2023,,LB of Brent,06/03/2023,Amznmktplace,Cemeteries Admin,Stationery,77.49
08/06/2023,,LB of Brent,06/03/2023,Amznmktplace,Brent Family Solutions,Supplies and Services Expenditure,678.12
08/06/2023,,LB of Brent,06/03/2023,Amznmktplace,Brent Family Solutions,Supplies and Services Expenditure,755.60
08/06/2023,,LB of Brent,03/03/2023,Brent Council,Housing Needs Housing Options Team,Supplies and Services Expenditure,11.00
08/06/2023,,LB of Brent,05/03/2023,British Gas Online,NAIL Property Management,Supplies and Services Expenditure,99.00
08/06/2023,,LB of Brent,05/03/2023,British Gas Online,NAIL Property Management,Supplies and Services Expenditure,99.00
08/06/2023,,LB of Brent,05/03/2023,British Gas Online,NAIL Property Management,Supplies and Services Expenditure,99.00
08/06/2023,,LB of Brent,05/03/2023,British Gas Online,NAIL Property Management,Supplies and Services Expenditure,99.00
08/06/2023,,LB of Brent,05/03/2023,British Gas Online,NAIL Property Management,Supplies and Services Expenditure,99.00
08/06/2023,,LB of Brent,06/03/2023,Amznmktplace,Short Break Centre,Supplies and Services Expenditure,290.99
08/06/2023,,LB of Brent,06/03/2023,Sainsburys Wembley,Social Services Directorate,Catering,31.41
08/06/2023,,LB of Brent,06/03/2023,Namesco,Brent Sicts,Information Communication Technology,261.55
08/06/2023,,LB of Brent,06/03/2023,Amznmktplace,Digital Strategy,Stationery,4.99
08/06/2023,,LB of Brent,06/03/2023,Amznmktplace,Legal Support,Stationery,5.36
08/06/2023,,LB of Brent,06/03/2023,Amazon.Co.Uk,Assessment,Stationery,9.99
08/06/2023,,LB of Brent,06/03/2023,Event Tkt* 89815xxx St,Strategy and Partnerships,Financial Services,30.00
08/06/2023,,LB of Brent,06/03/2023,Amznmktplace,Cemeteries Admin,Stationery,136.49
08/06/2023,,LB of Brent,06/03/2023,Amznmktplace,Legal Support,Stationery,224.92
08/06/2023,,LB of Brent,06/03/2023,Posturite Ltd,Strategy and Partnerships,Stationery,691.08
08/06/2023,,LB of Brent,06/03/2023,Amznmktplace,Childrens Social Care Business Support,Supplies and Services Expenditure,18.19
08/06/2023,,LB of Brent,06/03/2023,Miro.Com,IT Operations,Information Communication Technology,165.59
08/06/2023,,LB of Brent,06/03/2023,Amz*the Game Collectio,Brent Family Solutions,Supplies and Services Expenditure,-67.95
08/06/2023,,LB of Brent,06/03/2023,Amz*the Game Collectio,Brent Family Solutions,Supplies and Services Expenditure,-67.95
08/06/2023,,LB of Brent,06/03/2023,Amz*boulevard Online,Brent Family Solutions,Supplies and Services Expenditure,-70.62
08/06/2023,,LB of Brent,06/03/2023,Amznmktplace,Brent Family Solutions,Supplies and Services Expenditure,648.95
08/06/2023,,LB of Brent,06/03/2023,Amznmktplace,Brent Family Solutions,Supplies and Services Expenditure,648.95
08/06/2023,,LB of Brent,06/03/2023,Tesco Stores 2080,Gordon Brown Outdoor Education Centre,Supplies and Services Expenditure,94.78
08/06/2023,,LB of Brent,06/03/2023,Trainline.Com,Housing Needs Housing Options Team,Supplies and Services Expenditure,-29.45
08/06/2023,,LB of Brent,06/03/2023,Trainline,Housing Needs Housing Options Team,Supplies and Services Expenditure,44.04
08/06/2023,,LB of Brent,07/03/2023,Www.Adass.Org.Uk,Social Services Directorate,Human Resources - Training and Conferences,580.00
08/06/2023,,LB of Brent,07/03/2023,Amazon Prime,Brent Sicts,Information Communication Technology,8.99
08/06/2023,,LB of Brent,07/03/2023,Easyjet,Brent Sicts,Information Communication Technology,99.46
08/06/2023,,LB of Brent,07/03/2023,Calendly,Member Development,Education,51.52
08/06/2023,,LB of Brent,07/03/2023,Amazon.Co.Uk,Legal Support,Stationery,54.98
08/06/2023,,LB of Brent,07/03/2023,B&m 540 - Willesden,Willows Nursery,Supplies and Services Expenditure,36.11
08/06/2023,,LB of Brent,07/03/2023,Hmctslondoncse077,Revenues,Supplies and Services Expenditure,9.00
08/06/2023,,LB of Brent,07/03/2023,Amz*boulevard Online,Brent Family Solutions,Supplies and Services Expenditure,-70.62
08/06/2023,,LB of Brent,07/03/2023,Amznmktplace,Brent Family Solutions,Supplies and Services Expenditure,647.00
08/06/2023,,LB of Brent,07/03/2023,Amazon.Co.Uk,Brent Family Solutions,Supplies and Services Expenditure,"1,677.99"
08/06/2023,,LB of Brent,07/03/2023,Trainline,Housing Needs Housing Options Team,Supplies and Services Expenditure,-29.45
08/06/2023,,LB of Brent,08/03/2023,Tesco Stores 2122,Short Break Centre,Supplies and Services Expenditure,55.31
08/06/2023,,LB of Brent,08/03/2023,British Gas Otp,NAIL Property Management,Supplies and Services Expenditure,49.00
08/06/2023,,LB of Brent,08/03/2023,British Gas Online,NAIL Property Management,Supplies and Services Expenditure,99.00
08/06/2023,,LB of Brent,08/03/2023,British Gas Online,NAIL Property Management,Supplies and Services Expenditure,99.00
08/06/2023,,LB of Brent,08/03/2023,British Gas Online,NAIL Property Management,Supplies and Services Expenditure,99.00
08/06/2023,,LB of Brent,08/03/2023,British Gas Online,NAIL Property Management,Supplies and Services Expenditure,99.00
08/06/2023,,LB of Brent,08/03/2023,Amznmktplace,Civic Centre - Av,Stationery,81.33
08/06/2023,,LB of Brent,08/03/2023,Www.Local.Gov.Uk,Chief Execs,Financial Services,667.08
08/06/2023,,LB of Brent,08/03/2023,Amazon Prime,Childrens Social Care Business Support,Supplies and Services Expenditure,8.99
08/06/2023,,LB of Brent,08/03/2023,Asda George Com Leeds,Syrian Refugees Project,Supplies and Services Expenditure,81.00
08/06/2023,,LB of Brent,08/03/2023,Amznmktplace,Legal Support,Stationery,29.39
08/06/2023,,LB of Brent,08/03/2023,Lul Ticket Machine,Brent Family Solutions,Supplies and Services Expenditure,5.00
08/06/2023,,LB of Brent,08/03/2023,Lul Ticket Machine,Brent Family Solutions,Supplies and Services Expenditure,85.00
08/06/2023,,LB of Brent,08/03/2023,Amznmktplace,Brent Family Solutions,Supplies and Services Expenditure,103.92
08/06/2023,,LB of Brent,08/03/2023,Amznmktplace,Brent Family Solutions,Supplies and Services Expenditure,300.51
08/06/2023,,LB of Brent,08/03/2023,Tesco Stores 2080,Gordon Brown Outdoor Education Centre,Supplies and Services Expenditure,68.85
08/06/2023,,LB of Brent,08/03/2023,Veed.Io Basic,Campaigns and Media,Supplies and Services Expenditure,18.00
08/06/2023,,LB of Brent,08/03/2023,Costco Wholesale #128,ICP Transformation Team,Supplies and Services Expenditure,443.90
08/06/2023,,LB of Brent,09/03/2023,Zaks Shoe Service,TA Property Management,Supplies and Services Expenditure,19.00
08/06/2023,,LB of Brent,09/03/2023,Amznmktplace,Customer Access Improvement and Performance,Stationery,7.99
08/06/2023,,LB of Brent,09/03/2023,Www.Hotbargains.Online,Harlesden Library,Stationery,79.14
08/06/2023,,LB of Brent,09/03/2023,Viking Office UK Limit,Legal Support,Stationery,491.88
08/06/2023,,LB of Brent,09/03/2023,Www.Argos.Co.Uk,Syrian Refugees Project,Supplies and Services Expenditure,128.45
08/06/2023,,LB of Brent,09/03/2023,Www.Argos.Co.Uk,Syrian Refugees Project,Supplies and Services Expenditure,164.95
08/06/2023,,LB of Brent,09/03/2023,Dunelm Softfurnishings,Syrian Refugees Project,Supplies and Services Expenditure,325.00
08/06/2023,,LB of Brent,09/03/2023,Currys Online,Syrian Refugees Project,Supplies and Services Expenditure,344.00
08/06/2023,,LB of Brent,09/03/2023,Amznmktplace,Chief Execs,Stationery,15.75
08/06/2023,,LB of Brent,09/03/2023,Pegasus Art,Heritage,Supplies and Services Expenditure,16.45
08/06/2023,,LB of Brent,09/03/2023,Www.Sign-Holders.Co.Uk,Heritage,Supplies and Services Expenditure,52.20
08/06/2023,,LB of Brent,09/03/2023,Popat Stores,Heritage,Supplies and Services Expenditure,66.94
08/06/2023,,LB of Brent,09/03/2023,Thomson Reuters UK Ltd,Legal Support,Supplies and Services Expenditure,187.20
08/06/2023,,LB of Brent,09/03/2023,Amznmktplace,Brent Family Solutions,Supplies and Services Expenditure,29.85
08/06/2023,,LB of Brent,09/03/2023,Amznmktplace,Brent Family Solutions,Supplies and Services Expenditure,80.97
08/06/2023,,LB of Brent,09/03/2023,Amznmktplace,Brent Family Solutions,Supplies and Services Expenditure,80.97
08/06/2023,,LB of Brent,09/03/2023,Amznmktplace,Brent Family Solutions,Supplies and Services Expenditure,157.90
08/06/2023,,LB of Brent,10/03/2023,1password,IT Operations,Supplies and Services Expenditure,25.42
08/06/2023,,LB of Brent,09/03/2023,Scottish Power,NAIL Property Management,Supplies and Services Expenditure,100.00
08/06/2023,,LB of Brent,09/03/2023,Scottish Power,NAIL Property Management,Supplies and Services Expenditure,100.00
08/06/2023,,LB of Brent,09/03/2023,Holiday Inn London Wes,Bed and Breakfast Hotels,Financial Services,126.00
08/06/2023,,LB of Brent,09/03/2023,Holiday Inn London Wes,Bed and Breakfast Hotels,Financial Services,"1,258.09"
08/06/2023,,LB of Brent,10/03/2023,Amz*one Retail Group,TA Property Management,Supplies and Services Expenditure,-59.98
08/06/2023,,LB of Brent,10/03/2023,British Gas Online,TA Property Management,Supplies and Services Expenditure,99.00
08/06/2023,,LB of Brent,10/03/2023,Travelodge Gb0000,Bed and Breakfast,Supplies and Services Expenditure,574.18
08/06/2023,,LB of Brent,10/03/2023,Amznmktplace,Digital Post Room,Stationery,3.86
08/06/2023,,LB of Brent,10/03/2023,Namesco,MOPAC Rescue and Response,Financial Services,90.00
08/06/2023,,LB of Brent,10/03/2023,Tesco Stores 2122,Residential and Nursing Team,Supplies and Services Expenditure,41.00
08/06/2023,,LB of Brent,10/03/2023,Brent Parking,Parish Liaison,Financial Services,2.00
08/06/2023,,LB of Brent,10/03/2023,Amznmktplace,Communities and Regeneration - Year End Financial Accounts,Stationery,11.99
08/06/2023,,LB of Brent,10/03/2023,Amazon Prime,Registration and Nationality Service,Supplies and Services Expenditure,8.99
08/06/2023,,LB of Brent,10/03/2023,Refood UK Ltd,Food Safety,Supplies and Services Expenditure,360.00
08/06/2023,,LB of Brent,10/03/2023,Amznmktplace,Brent Family Solutions,Supplies and Services Expenditure,672.99
08/06/2023,,LB of Brent,11/03/2023,Tesco Stores 2122,Short Break Centre,Supplies and Services Expenditure,102.44
08/06/2023,,LB of Brent,11/03/2023,1password,IT Operations,Information Communication Technology,25.11
08/06/2023,,LB of Brent,12/03/2023,Amznmktplace,Communities and Regeneration - Year End Financial Accounts,Stationery,18.99
08/06/2023,,LB of Brent,12/03/2023,Quizizz Inc,Wembley Learning Zone,Education,197.15
08/06/2023,,LB of Brent,12/03/2023,Amznmktplace,Wembley Learning Zone,Education,253.60
08/06/2023,,LB of Brent,12/03/2023,Amznmktplace,Brent Family Solutions,Supplies and Services Expenditure,45.98
08/06/2023,,LB of Brent,12/03/2023,Amznmktplace,Brent Family Solutions,Supplies and Services Expenditure,137.94
08/06/2023,,LB of Brent,12/03/2023,Facebk 2ptfumxhq2,Major Projects - Staples Corner Masterplan,Supplies and Services Expenditure,199.80
08/06/2023,,LB of Brent,12/03/2023,Facebk 2ptfumxhq2,Major Projects - Central,Supplies and Services Expenditure,134.90
08/06/2023,,LB of Brent,12/03/2023,Facebk 2ptfumxhq2,Community Engagement,Supplies and Services Expenditure,20.00
08/06/2023,,LB of Brent,11/03/2023,Scottish Power,NAIL Property Management,Supplies and Services Expenditure,100.00
08/06/2023,,LB of Brent,11/03/2023,Scottish Power,NAIL Property Management,Supplies and Services Expenditure,200.00
08/06/2023,,LB of Brent,13/03/2023,British Gas Online,NAIL Property Management,Supplies and Services Expenditure,99.00
08/06/2023,,LB of Brent,13/03/2023,British Gas Online,NAIL Property Management,Supplies and Services Expenditure,99.00
08/06/2023,,LB of Brent,13/03/2023,Logs For Sale Ltd,Gordon Brown Outdoor Education Centre,Supplies and Services Expenditure,666.96
08/06/2023,,LB of Brent,13/03/2023,Dunelm Ltd,Brent Music Service,Supplies and Services Expenditure,15.00
08/06/2023,,LB of Brent,13/03/2023,Costco Wholesale #128,Brent Music Service,Supplies and Services Expenditure,61.53
08/06/2023,,LB of Brent,13/03/2023,Amznmktplace,Customer Access Improvement and Performance,Stationery,172.01
08/06/2023,,LB of Brent,13/03/2023,Amznmktplace,Cemeteries Admin,Stationery,179.98
08/06/2023,,LB of Brent,13/03/2023,Www.Local.Gov.Uk,Political Group Support,Financial Services,"1,334.16"
08/06/2023,,LB of Brent,13/03/2023,Asda Groceries Online,Willows Nursery,Supplies and Services Expenditure,-2.65
08/06/2023,,LB of Brent,13/03/2023,Asda Groceries Online,Willows Nursery,Supplies and Services Expenditure,125.86
08/06/2023,,LB of Brent,13/03/2023,Www.Argos.Co.Uk,Homes for Ukraine Scheme,Social Community Care Supplies and Services - Adult,75.95
08/06/2023,,LB of Brent,13/03/2023,Namesco,IT Operations,Supplies and Services Expenditure,5.99
08/06/2023,,LB of Brent,13/03/2023,Amznmktplace,Brent Family Solutions,Supplies and Services Expenditure,127.92
08/06/2023,,LB of Brent,13/03/2023,Amznmktplace,Brent Family Solutions,Supplies and Services Expenditure,196.01
08/06/2023,,LB of Brent,13/03/2023,Tesco Stores 2080,Gordon Brown Outdoor Education Centre,Supplies and Services Expenditure,97.61
08/06/2023,,LB of Brent,13/03/2023,Paypal,Bridge Park Facilities,Supplies and Services Expenditure,324.00
08/06/2023,,LB of Brent,14/03/2023,Tesco Stores 2122,Bridge Park Facilities,Supplies and Services Expenditure,79.98
08/06/2023,,LB of Brent,14/03/2023,Sainsburys S/mkt,Brent Music Service,Supplies and Services Expenditure,53.70
08/06/2023,,LB of Brent,14/03/2023,Entrust Gbp,Southwark IT Shared Service,Information Communication Technology,76.61
08/06/2023,,LB of Brent,14/03/2023,Amz*amazon.Co.Uk,ASC Occupational Therapy Team,Stationery,-39.88
08/06/2023,,LB of Brent,14/03/2023,Newsquest Media Group,Registration and Nationality Service,Supplies and Services Expenditure,445.63
08/06/2023,,LB of Brent,14/03/2023,Campanile,I4B Property Management,Financial Services,117.90
08/06/2023,,LB of Brent,14/03/2023,Amznmktplace,Gordon Brown Outdoor Education Centre,Supplies and Services Expenditure,8.59
08/06/2023,,LB of Brent,14/03/2023,Amznmktplace,Gordon Brown Outdoor Education Centre,Supplies and Services Expenditure,15.99
08/06/2023,,LB of Brent,15/03/2023,Tesco Stores 2122,Short Break Centre,Supplies and Services Expenditure,76.42
08/06/2023,,LB of Brent,15/03/2023,Amznmktplace,Training Costs - Learning and Staff Development,Human Resources - Training and Conferences,12.99
08/06/2023,,LB of Brent,15/03/2023,Ikea Ltd Shop Online,Training Costs - Learning and Staff Development,Human Resources - Training and Conferences,14.50
08/06/2023,,LB of Brent,15/03/2023,One4all,Training Costs - Learning and Staff Development,Human Resources - Training and Conferences,100.99
08/06/2023,,LB of Brent,15/03/2023,British Gas Online,NAIL Property Management,Supplies and Services Expenditure,99.00
08/06/2023,,LB of Brent,15/03/2023,British Gas Online,NAIL Property Management,Supplies and Services Expenditure,99.00
08/06/2023,,LB of Brent,15/03/2023,Screwfix Dir Ltd,Gordon Brown Outdoor Education Centre,Supplies and Services Expenditure,24.32
08/06/2023,,LB of Brent,15/03/2023,Poundland Ltd 1584,Gordon Brown Outdoor Education Centre,Supplies and Services Expenditure,51.75
08/06/2023,,LB of Brent,15/03/2023,Tesco Stores 5646,Brent Music Service,Supplies and Services Expenditure,12.00
08/06/2023,,LB of Brent,15/03/2023,Shell Neasden 014,Brent Music Service,Supplies and Services Expenditure,118.67
08/06/2023,,LB of Brent,15/03/2023,Www.Cimaglobal.Com,Brent Sicts,Information Communication Technology,225.00
08/06/2023,,LB of Brent,15/03/2023,Amazon.Co.Uk,Digital Post Room,Stationery,87.87
08/06/2023,,LB of Brent,15/03/2023,Tenancy Fraud Forum,Audit and Investigations,Human Resources,240.00
08/06/2023,,LB of Brent,15/03/2023,Tenancy Fraud Forum,Audit and Investigations,Human Resources,360.00
08/06/2023,,LB of Brent,15/03/2023,Amznmktplace,East Long-Term Team 5,Stationery,12.99
08/06/2023,,LB of Brent,15/03/2023,Monday.Com,IT Operations,Information Communication Technology,"1,132.64"
08/06/2023,,LB of Brent,15/03/2023,Trainline,I4B Property Management,Financial Services,-75.10
08/06/2023,,LB of Brent,15/03/2023,Tesco Stores 2080,Gordon Brown Outdoor Education Centre,Supplies and Services Expenditure,103.82
08/06/2023,,LB of Brent,15/03/2023,Canva* I03725-15601905,Housing Partnerships Service,Supplies and Services Expenditure,10.99
08/06/2023,,LB of Brent,15/03/2023,Brent Council,Parish Liaison,Financial Services,33.00
08/06/2023,,LB of Brent,16/03/2023,Amznmktplace,Short Break Centre,Supplies and Services Expenditure,11.87
08/06/2023,,LB of Brent,16/03/2023,Vistaprint,Training Costs - Learning and Staff Development,Human Resources - Training and Conferences,19.66
08/06/2023,,LB of Brent,16/03/2023,One4all,Training Costs - Learning and Staff Development,Human Resources - Training and Conferences,20.99
08/06/2023,,LB of Brent,16/03/2023,Howarth Of London,Brent Music Service,Supplies and Services Expenditure,36.00
08/06/2023,,LB of Brent,16/03/2023,Howarth Of London,Brent Music Service,Supplies and Services Expenditure,72.00
08/06/2023,,LB of Brent,16/03/2023,Amazon.Co.Uk,Community Hubs,Stationery,32.97
08/06/2023,,LB of Brent,16/03/2023,Amznmktplace,Community Hubs,Stationery,109.98
08/06/2023,,LB of Brent,16/03/2023,Amznmktplace,Cemeteries Admin,Stationery,271.51
08/06/2023,,LB of Brent,16/03/2023,Currys Online,Transformation Director,Stationery,"2,398.00"
08/06/2023,,LB of Brent,16/03/2023,Www.Argos.Co.Uk,Residential and Nursing Team,Supplies and Services Expenditure,72.70
08/06/2023,,LB of Brent,16/03/2023,Oyo-Booking-262501134,Housing Needs Accommodation Team,Supplies and Services Expenditure,134.00
08/06/2023,,LB of Brent,16/03/2023,Oyo-Booking-262501126,Housing Needs Accommodation Team,Supplies and Services Expenditure,192.00
08/06/2023,,LB of Brent,16/03/2023,Amz*labyrinth Games,Chief Execs,Stationery,-15.75
08/06/2023,,LB of Brent,16/03/2023,Amznmktplace,Chief Execs,Stationery,15.75
08/06/2023,,LB of Brent,16/03/2023,Amznmktplace,Cemeteries Admin,Stationery,43.98
08/06/2023,,LB of Brent,16/03/2023,Find A Will,Debt and Income,Supplies and Services Expenditure,1.50
08/06/2023,,LB of Brent,16/03/2023,Companieshouse Web Filing,Legal Support,Supplies and Services Expenditure,15.00
08/06/2023,,LB of Brent,16/03/2023,Travelodge Gb0000,Bed and Breakfast Hotels,Financial Services,350.83
08/06/2023,,LB of Brent,17/03/2023,Amznmktplace,Community Hubs,Stationery,"1,138.01"
08/06/2023,,LB of Brent,17/03/2023,1password,IT Operations,Information Communication Technology,24.05
08/06/2023,,LB of Brent,16/03/2023,Rumbles,Afghan Resettlement Scheme,Social Community Care Supplies and Services - Adult,232.33
08/06/2023,,LB of Brent,16/03/2023,Holiday Inn London Wes,Bed and Breakfast Hotels,Financial Services,-151.93
08/06/2023,,LB of Brent,16/03/2023,Holiday Inn London Wes,Bed and Breakfast Hotels,Financial Services,181.93
08/06/2023,,LB of Brent,17/03/2023,Amznmktplace,Civic Centre Conference and Events,Stationery,21.33
08/06/2023,,LB of Brent,17/03/2023,Aimuseums,Heritage,Arts and Leisure Services,110.00
08/06/2023,,LB of Brent,17/03/2023,Amz*xutuo-Eu,Brent Family Solutions,Supplies and Services Expenditure,-99.99
08/06/2023,,LB of Brent,17/03/2023,Amz*xutuo-Eu,Brent Family Solutions,Supplies and Services Expenditure,-99.99
08/06/2023,,LB of Brent,17/03/2023,Amz*xutuo-Eu,Brent Family Solutions,Supplies and Services Expenditure,-99.99
08/06/2023,,LB of Brent,18/03/2023,Tesco Stores 2122,Short Break Centre,Supplies and Services Expenditure,-6.50
08/06/2023,,LB of Brent,18/03/2023,Tesco Stores 2122,Short Break Centre,Supplies and Services Expenditure,128.57
08/06/2023,,LB of Brent,18/03/2023,Amz*xutuo-Eu,Brent Family Solutions,Supplies and Services Expenditure,-99.99
08/06/2023,,LB of Brent,19/03/2023,Amznmktplace,Short Break Centre,Supplies and Services Expenditure,13.98
08/06/2023,,LB of Brent,19/03/2023,Amznmktplace,Short Break Centre,Supplies and Services Expenditure,13.95
08/06/2023,,LB of Brent,19/03/2023,Amznmktplace,Short Break Centre,Supplies and Services Expenditure,9.90
08/06/2023,,LB of Brent,19/03/2023,Atlassian,Digital Comms,Supplies and Services Expenditure,10.22
08/06/2023,,LB of Brent,19/03/2023,Amznmktplace,Brent Family Solutions,Supplies and Services Expenditure,125.03
08/06/2023,,LB of Brent,19/03/2023,Amznmktplace,Brent Family Solutions,Supplies and Services Expenditure,453.98
08/06/2023,,LB of Brent,20/03/2023,Amznmktplace,Short Break Centre,Supplies and Services Expenditure,41.56
08/06/2023,,LB of Brent,20/03/2023,Asda Superstore 04881,Training Costs - Learning and Staff Development,Human Resources - Training and Conferences,15.35
08/06/2023,,LB of Brent,20/03/2023,Costco Wholesale #128,Social Services Directorate,Supplies and Services Expenditure,51.55
08/06/2023,,LB of Brent,20/03/2023,Costco Wholesale #128,Training Costs - Learning and Staff Development,Human Resources - Training and Conferences,75.26
08/06/2023,,LB of Brent,20/03/2023,British Gas Online,TA Property Management,Supplies and Services Expenditure,99.00
08/06/2023,,LB of Brent,20/03/2023,British Gas Online,TA Property Management,Supplies and Services Expenditure,99.00
08/06/2023,,LB of Brent,20/03/2023,Asda Groceries Online,Willows Nursery,Supplies and Services Expenditure,-3.50
08/06/2023,,LB of Brent,20/03/2023,Asda Groceries Online,Willows Nursery,Supplies and Services Expenditure,104.43
08/06/2023,,LB of Brent,20/03/2023,Starbucks,Homes for Ukraine Scheme,Financial Services,266.25
08/06/2023,,LB of Brent,20/03/2023,Starbucks,Homes for Ukraine Scheme,Financial Services,577.50
08/06/2023,,LB of Brent,20/03/2023,Travelodge Gb0000,Bed and Breakfast Hotels,Financial Services,912.81
08/06/2023,,LB of Brent,20/03/2023,Fasthosts,First Wave Housing Property Management,Financial Services,28.78
08/06/2023,,LB of Brent,21/03/2023,British Gas Online,NAIL Property Management,Supplies and Services Expenditure,99.00
08/06/2023,,LB of Brent,21/03/2023,British Gas Online,NAIL Property Management,Supplies and Services Expenditure,99.00
08/06/2023,,LB of Brent,21/03/2023,British Gas Online,NAIL Property Management,Supplies and Services Expenditure,99.00
08/06/2023,,LB of Brent,21/03/2023,Scottish Power,NAIL Property Management,Supplies and Services Expenditure,200.00
08/06/2023,,LB of Brent,21/03/2023,Scottish Power,NAIL Property Management,Supplies and Services Expenditure,200.00
08/06/2023,,LB of Brent,21/03/2023,Amazon.Co.Uk,Income Control Team,Stationery,35.60
08/06/2023,,LB of Brent,21/03/2023,Namesco,MOPAC Rescue and Response,Financial Services,96.00
08/06/2023,,LB of Brent,21/03/2023,Amznmktplace,Legal Support,Stationery,129.99
08/06/2023,,LB of Brent,21/03/2023,Oyo-Booking-263049167,Housing Needs Accommodation Team,Supplies and Services Expenditure,313.00
08/06/2023,,LB of Brent,21/03/2023,Oyo-Booking-263049430,Housing Needs Accommodation Team,Supplies and Services Expenditure,313.00
08/06/2023,,LB of Brent,21/03/2023,Bkg*booking.Com Hotel,Housing Needs Accommodation Team,Supplies and Services Expenditure,468.29
08/06/2023,,LB of Brent,21/03/2023,Bkg*booking.Com Hotel,Housing Needs Accommodation Team,Supplies and Services Expenditure,877.26
08/06/2023,,LB of Brent,21/03/2023,Tesco Stores 2080,Gordon Brown Outdoor Education Centre,Supplies and Services Expenditure,139.49
08/06/2023,,LB of Brent,22/03/2023,Amz*amazon Warehouse,Customer Access Improvement and Performance,Stationery,-128.68
08/06/2023,,LB of Brent,22/03/2023,Tesco Stores 2122,Short Break Centre,Supplies and Services Expenditure,138.51
08/06/2023,,LB of Brent,22/03/2023,Amznmktplace,Brent Music Service,Supplies and Services Expenditure,12.15
08/06/2023,,LB of Brent,22/03/2023,Amazon.Co.Uk,Brent Music Service,Supplies and Services Expenditure,19.00
08/06/2023,,LB of Brent,22/03/2023,Zoom.Us 888-799-9666,Brent Music Service,Supplies and Services Expenditure,562.85
08/06/2023,,LB of Brent,22/03/2023,Hmcts Westlondon073,Revenues,Supplies and Services Expenditure,444.00
08/06/2023,,LB of Brent,23/03/2023,Debit Adjustment - Dispute Refund Reversal,Traffic Management Act 2004,Supplies and Services Expenditure,15.99
08/06/2023,,LB of Brent,23/03/2023,Debit Adjustment - Dispute Refund Reversal,Traffic Management Act 2004,Supplies and Services Expenditure,19.99
08/06/2023,,LB of Brent,23/03/2023,Debit Adjustment - Dispute Refund Reversal,Traffic Management Act 2004,Supplies and Services Expenditure,50.00
08/06/2023,,LB of Brent,23/03/2023,Www.Argos.Co.Uk,Bridge Park Facilities,Supplies and Services Expenditure,49.50
08/06/2023,,LB of Brent,23/03/2023,Amazon.Co.Uk,Brent Music Service,Supplies and Services Expenditure,9.95
08/06/2023,,LB of Brent,23/03/2023,Sp Party Crashers,Brent Music Service,Supplies and Services Expenditure,42.28
08/06/2023,,LB of Brent,23/03/2023,Amazon.Co.Uk,Traffic Management Act 2004,Supplies and Services Expenditure,352.52
08/06/2023,,LB of Brent,23/03/2023,Sainsburys Wembley,Community Engagement,Stationery,-4.50
08/06/2023,,LB of Brent,23/03/2023,Sainsburys Wembley,Community Engagement,Stationery,20.30
08/06/2023,,LB of Brent,23/03/2023,Asda Superstore 04881,Willows Nursery,Supplies and Services Expenditure,9.39
08/06/2023,,LB of Brent,23/03/2023,Asda Superstore 04881,Willows Nursery,Supplies and Services Expenditure,10.00
08/06/2023,,LB of Brent,23/03/2023,Amz,Brent Family Solutions,Supplies and Services Expenditure,-239.71
08/06/2023,,LB of Brent,23/03/2023,Amz,Brent Family Solutions,Supplies and Services Expenditure,-719.14
08/06/2023,,LB of Brent,23/03/2023,Amznmktplace,Gordon Brown Outdoor Education Centre,Supplies and Services Expenditure,20.25
08/06/2023,,LB of Brent,23/03/2023,Clr,Housing Partnerships Service,Supplies and Services Expenditure,29.95
08/06/2023,,LB of Brent,24/03/2023,Adobe Creative Cloud,The Brent Magazine - Level 4,Financial Services,"1,273.97"
08/06/2023,,LB of Brent,24/03/2023,1password,IT Operations,Information Communication Technology,68.17
08/06/2023,,LB of Brent,24/03/2023,Amznmktplace,Brent Family Solutions,Supplies and Services Expenditure,112.34
08/06/2023,,LB of Brent,24/03/2023,Amznmktplace,Brent Family Solutions,Supplies and Services Expenditure,148.91
08/06/2023,,LB of Brent,23/03/2023,Premier Farnell,Community Engagement,Stationery,156.00
08/06/2023,,LB of Brent,24/03/2023,Travelodge Gb0000,Bed and Breakfast,Supplies and Services Expenditure,"1,235.08"
08/06/2023,,LB of Brent,24/03/2023,Grantly Hotel,Housing Needs Accommodation Team,Supplies and Services Expenditure,"1,000.00"
08/06/2023,,LB of Brent,24/03/2023,Grantly Hotel,Housing Needs Accommodation Team,Supplies and Services Expenditure,"1,000.00"
08/06/2023,,LB of Brent,24/03/2023,Www.Argos.Co.Uk,Afghan Resettlement Scheme,Social Community Care Supplies and Services - Adult,45.95
08/06/2023,,LB of Brent,24/03/2023,Www.Argos.Co.Uk,Afghan Resettlement Scheme,Social Community Care Supplies and Services - Adult,65.00
08/06/2023,,LB of Brent,24/03/2023,Www.Argos.Co.Uk,Afghan Resettlement Scheme,Social Community Care Supplies and Services - Adult,128.95
08/06/2023,,LB of Brent,24/03/2023,Www.Argos.Co.Uk,Afghan Resettlement Scheme,Social Community Care Supplies and Services - Adult,365.95
08/06/2023,,LB of Brent,24/03/2023,Hotjar,Digital Comms,Supplies and Services Expenditure,86.63
08/06/2023,,LB of Brent,24/03/2023,Amznmktplace,Brent Family Solutions,Supplies and Services Expenditure,82.31
08/06/2023,,LB of Brent,25/03/2023,Tesco Stores 2122,Short Break Centre,Supplies and Services Expenditure,62.07
08/06/2023,,LB of Brent,25/03/2023,Post Office Counter,Bridge Park Facilities,Supplies and Services Expenditure,15.45
08/06/2023,,LB of Brent,25/03/2023,Amznmktplace,Alperton Cemetery,Stationery,949.50
08/06/2023,,LB of Brent,25/03/2023,Toolstation Limited,Willows Nursery,Supplies and Services Expenditure,4.08
08/06/2023,,LB of Brent,26/03/2023,Amazon.Co.Uk,Customer Access Improvement and Performance,Stationery,7.23
08/06/2023,,LB of Brent,26/03/2023,Wly,Willows Nursery,Supplies and Services Expenditure,15.00
08/06/2023,,LB of Brent,27/03/2023,The Corner Shop,Smart Team,Supplies and Services Expenditure,1.75
08/06/2023,,LB of Brent,27/03/2023,The Corner Shop,Smart Team,Supplies and Services Expenditure,14.74
08/06/2023,,LB of Brent,27/03/2023,Asda Groceries Online,Willows Nursery,Supplies and Services Expenditure,-2.65
08/06/2023,,LB of Brent,27/03/2023,Asda Groceries Online,Willows Nursery,Supplies and Services Expenditure,6.00
08/06/2023,,LB of Brent,27/03/2023,Asda Groceries Online,Willows Nursery,Supplies and Services Expenditure,84.79
08/06/2023,,LB of Brent,27/03/2023,Www.Argos.Co.Uk,Afghan Resettlement Scheme,Social Community Care Supplies and Services - Adult,72.94
08/06/2023,,LB of Brent,27/03/2023,Amznmktplace,Cemeteries Admin,Stationery,98.08
08/06/2023,,LB of Brent,27/03/2023,Amznmktplace,Civic Centre - Av,Stationery,103.23
08/06/2023,,LB of Brent,27/03/2023,Arena Mini Mart,Brent Family Solutions,Supplies and Services Expenditure,40.00
08/06/2023,,LB of Brent,27/03/2023,Www.Papajohn S.Co.Uk,Brent Family Solutions,Supplies and Services Expenditure,103.99
08/06/2023,,LB of Brent,27/03/2023,Amznmktplace,Brent Family Solutions,Supplies and Services Expenditure,104.95
08/06/2023,,LB of Brent,27/03/2023,Amznmktplace,Brent Family Solutions,Supplies and Services Expenditure,159.84
08/06/2023,,LB of Brent,28/03/2023,Amazon Prime,TA Property Management,Supplies and Services Expenditure,-0.99
08/06/2023,,LB of Brent,28/03/2023,Amazon Prime,TA Property Management,Supplies and Services Expenditure,0.99
08/06/2023,,LB of Brent,28/03/2023,Atlassian,Social Services Directorate,Facilities and Management Services,111.25
08/06/2023,,LB of Brent,28/03/2023,Amznmktplace,Brent Family Solutions,Supplies and Services Expenditure,40.98
08/06/2023,,LB of Brent,28/03/2023,Amznmktplace,Brent Family Solutions,Supplies and Services Expenditure,74.90
08/06/2023,,LB of Brent,28/03/2023,Gb Total Equestrian,Gordon Brown Outdoor Education Centre,Supplies and Services Expenditure,89.25
08/06/2023,,LB of Brent,28/03/2023,Tesco Stores 2080,Gordon Brown Outdoor Education Centre,Supplies and Services Expenditure,224.43
08/06/2023,,LB of Brent,29/03/2023,Amznmktplace,Carpenders Park Cemetery,Stationery,29.96
08/06/2023,,LB of Brent,29/03/2023,Amznmktplace,Registration and Nationality Service,Supplies and Services Expenditure,447.18
08/06/2023,,LB of Brent,28/03/2023,Tfl Roadchg Stdautopay,Building Cleaning,Supplies and Services Expenditure,"1,000.00"
08/06/2023,,LB of Brent,28/03/2023,Iceland Foods,Residential and Nursing Team,Supplies and Services Expenditure,51.78
08/06/2023,,LB of Brent,29/03/2023,Tesco Stores 2122,Short Break Centre,Supplies and Services Expenditure,137.99
08/06/2023,,LB of Brent,29/03/2023,Amznmktplace,TA Property Management,Supplies and Services Expenditure,103.25
08/06/2023,,LB of Brent,29/03/2023,Tesco Store 2670,Gordon Brown Outdoor Education Centre,Supplies and Services Expenditure,6.95
08/06/2023,,LB of Brent,29/03/2023,Viking Office UK Limit,Legal Support,Stationery,-245.94
08/06/2023,,LB of Brent,29/03/2023,Iceland Foods,Residential and Nursing Team,Supplies and Services Expenditure,-1.95
08/06/2023,,LB of Brent,29/03/2023,"Typeform, S.L.",Operational Costs - Facilities,Supplies and Services Expenditure,48.72
08/06/2023,,LB of Brent,29/03/2023,Asda Superstore 04881,Willows Nursery,Supplies and Services Expenditure,35.50
08/06/2023,,LB of Brent,29/03/2023,Amznmktplace,Brent Family Solutions,Supplies and Services Expenditure,67.39
08/06/2023,,LB of Brent,29/03/2023,Amznmktplace,Brent Family Solutions,Supplies and Services Expenditure,71.69
08/06/2023,,LB of Brent,29/03/2023,Amznmktplace,Brent Family Solutions,Supplies and Services Expenditure,71.69
08/06/2023,,LB of Brent,29/03/2023,Amznmktplace,Brent Family Solutions,Supplies and Services Expenditure,74.90
08/06/2023,,LB of Brent,30/03/2023,Trainline,Service Management and Support Services,Supplies and Services Expenditure,144.51
08/06/2023,,LB of Brent,30/03/2023,Poundland Ltd 1584,Gordon Brown Outdoor Education Centre,Supplies and Services Expenditure,8.00
08/06/2023,,LB of Brent,30/03/2023,Amznmktplace,Chief Execs,Stationery,15.99
08/06/2023,,LB of Brent,30/03/2023,Security Industry Auth,Operational Costs - Facilities,Supplies and Services Expenditure,380.00
08/06/2023,,LB of Brent,30/03/2023,Security Industry Auth,Operational Costs - Facilities,Supplies and Services Expenditure,380.00
08/06/2023,,LB of Brent,30/03/2023,Wembley Lock & Key,Willows Nursery,Supplies and Services Expenditure,7.80
08/06/2023,,LB of Brent,30/03/2023,Asda Superstore 04881,Syrian Refugees Project,Social Community Care Supplies and Services - Adult,75.96
08/06/2023,,LB of Brent,30/03/2023,Arena Mini Mart,Brent Family Solutions,Supplies and Services Expenditure,50.00
08/06/2023,,LB of Brent,30/03/2023,Sainsburys Wembley,Brent Family Solutions,Supplies and Services Expenditure,100.00
08/06/2023,,LB of Brent,30/03/2023,Sainsburys Wembley,Brent Family Solutions,Supplies and Services Expenditure,180.00
08/06/2023,,LB of Brent,31/03/2023,British Gas Online,TA Property Management,Supplies and Services Expenditure,99.00
08/06/2023,,LB of Brent,31/03/2023,British Gas Online,NAIL Property Management,Supplies and Services Expenditure,99.00
08/06/2023,,LB of Brent,31/03/2023,British Gas Online,TA Property Management,Supplies and Services Expenditure,99.00
08/06/2023,,LB of Brent,31/03/2023,British Gas Online,TA Property Management,Supplies and Services Expenditure,99.00
08/06/2023,,LB of Brent,31/03/2023,British Gas Online,TA Property Management,Supplies and Services Expenditure,99.00
08/06/2023,,LB of Brent,31/03/2023,British Gas Online,NAIL Property Management,Supplies and Services Expenditure,99.00
08/06/2023,,LB of Brent,31/03/2023,Hook - Dominos,Gordon Brown Outdoor Education Centre,Supplies and Services Expenditure,1.25
08/06/2023,,LB of Brent,31/03/2023,Hook - Dominos,Gordon Brown Outdoor Education Centre,Supplies and Services Expenditure,72.00
08/06/2023,,LB of Brent,31/03/2023,Asg Trading Limited,Gordon Brown Outdoor Education Centre,Supplies and Services Expenditure,"1,288.79"
08/06/2023,,LB of Brent,31/03/2023,Amz*mi Ke Lin,Legal Support,Stationery,-9.99
08/06/2023,,LB of Brent,31/03/2023,Amznmktplace,Resident Services Corporate Director,Stationery,19.99
08/06/2023,,LB of Brent,31/03/2023,Euroflorist UK Ltd,Communities and Regeneration - Year End Financial Accounts,Stationery,60.98
08/06/2023,,LB of Brent,31/03/2023,Freehold Managers Plc,I4B Property Management,Financial Services,215.00
08/06/2023,,LB of Brent,31/03/2023,Posturite Ltd,Community Engagement,Stationery,"1,504.01"
08/06/2023,,LB of Brent,31/03/2023,Www.Argos.Co.Uk,Homes for Ukraine Scheme,Social Community Care Supplies and Services - Adult,20.99
08/06/2023,,LB of Brent,31/03/2023,Www.Argos.Co.Uk,Homes for Ukraine Scheme,Social Community Care Supplies and Services - Adult,330.95
08/06/2023,,LB of Brent,31/03/2023,Next Retail Ltd,Registration and Nationality Service,Supplies and Services Expenditure,600.00
08/06/2023,,LB of Brent,31/03/2023,Next Retail Ltd,Registration and Nationality Service,Supplies and Services Expenditure,600.00
08/06/2023,,LB of Brent,31/03/2023,Next Retail Ltd,Registration and Nationality Service,Supplies and Services Expenditure,600.00
08/06/2023,,LB of Brent,31/03/2023,Next Retail Ltd,Registration and Nationality Service,Supplies and Services Expenditure,600.00
08/06/2023,,LB of Brent,31/03/2023,Next Retail Ltd,Registration and Nationality Service,Supplies and Services Expenditure,600.00
08/06/2023,,LB of Brent,31/03/2023,Next Retail Ltd,Registration and Nationality Service,Supplies and Services Expenditure,600.00
08/06/2023,,LB of Brent,31/03/2023,Fotojet.Com,Transformation Team,Financial Services,33.49
08/06/2023,,LB of Brent,31/03/2023,Amz*metzuyan Ltd,Brent Family Solutions,Supplies and Services Expenditure,-10.99
08/06/2023,,LB of Brent,31/03/2023,Amz*i-Promise,Brent Family Solutions,Supplies and Services Expenditure,-23.33
08/06/2023,,LB of Brent,31/03/2023,Amznmktplace,Brent Family Solutions,Supplies and Services Expenditure,58.89
08/06/2023,,LB of Brent,31/03/2023,Amznmktplace,Brent Family Solutions,Supplies and Services Expenditure,96.99
08/06/2023,,LB of Brent,01/04/2023,Tesco Stores 2122,Short Break Centre,Supplies and Services Expenditure,91.04
08/06/2023,,LB of Brent,01/04/2023,Tesco Stores 2080,Gordon Brown Outdoor Education Centre,Supplies and Services Expenditure,118.73
08/06/2023,,LB of Brent,01/04/2023,Calendly,Brent Music Service,Supplies and Services Expenditure,8.35
08/06/2023,,LB of Brent,01/04/2023,Gsuite_bmsstaff.Com,Brent Music Service,Supplies and Services Expenditure,55.20
08/06/2023,,LB of Brent,01/04/2023,Flickr Pro Monthly,Digital Comms,Supplies and Services Expenditure,6.99
08/06/2023,,LB of Brent,01/04/2023,Amzn Mktp Uk,Civic Centre Conference and Events,Stationery,25.86
08/06/2023,,LB of Brent,01/04/2023,Amznmktplace,Brent Family Solutions,Supplies and Services Expenditure,151.83
08/06/2023,,LB of Brent,01/04/2023,Amznmktplace,Brent Family Solutions,Supplies and Services Expenditure,272.99
08/06/2023,,LB of Brent,02/04/2023,Amznmktplace,Legal Support,Stationery,11.49
08/06/2023,,LB of Brent,02/04/2023,Amazon Prime,Willows Nursery,Supplies and Services Expenditure,8.99
08/06/2023,,LB of Brent,02/04/2023,Msft *,IT Operations,Information Communication Technology,5.40
08/06/2023,,LB of Brent,02/04/2023,Apple.Com/Uk,Housing Partnerships Service,Supplies and Services Expenditure,198.00
08/06/2023,,LB of Brent,03/04/2023,Amznmktplace,Member Services,Stationery,330.56
08/06/2023,,LB of Brent,03/04/2023,Sainsburys Wembley,Social Services Directorate,Catering,10.00
08/06/2023,,LB of Brent,03/04/2023,Lul Ticket Machine,Smart Team,Supplies and Services Expenditure,17.00
08/06/2023,,LB of Brent,03/04/2023,British Gas Online,NAIL Property Management,Supplies and Services Expenditure,99.00
08/06/2023,,LB of Brent,03/04/2023,British Gas Online,NAIL Property Management,Supplies and Services Expenditure,99.00
08/06/2023,,LB of Brent,03/04/2023,British Gas Online,NAIL Property Management,Supplies and Services Expenditure,99.00
08/06/2023,,LB of Brent,03/04/2023,British Gas Online,NAIL Property Management,Supplies and Services Expenditure,99.00
08/06/2023,,LB of Brent,03/04/2023,Scottish Power,NAIL Property Management,Supplies and Services Expenditure,200.00
08/06/2023,,LB of Brent,03/04/2023,Euro Car Parts P,Gordon Brown Outdoor Education Centre,Supplies and Services Expenditure,111.99
08/06/2023,,LB of Brent,03/04/2023,Euro Car Parts P,Gordon Brown Outdoor Education Centre,Supplies and Services Expenditure,135.99
08/06/2023,,LB of Brent,03/04/2023,Amznmktplace,Southwark IT Shared Service,Information Communication Technology,85.57
08/06/2023,,LB of Brent,03/04/2023,Amznmktplace,ICT,Stationery,13.99
08/06/2023,,LB of Brent,03/04/2023,Amznmktplace,Legal Support,Stationery,199.96
08/06/2023,,LB of Brent,03/04/2023,Trainline.Com,Audit and Investigations,Supplies and Services Expenditure,144.62
08/06/2023,,LB of Brent,03/04/2023,Amz*amazon Us,Brent Family Solutions,Supplies and Services Expenditure,-1.36
08/06/2023,,LB of Brent,03/04/2023,Amznmktplace,Brent Family Solutions,Supplies and Services Expenditure,614.93
08/06/2023,,LB of Brent,03/04/2023,Amznmktplace,Brent Family Solutions,Supplies and Services Expenditure,676.94
08/06/2023,,LB of Brent,04/04/2023,One4all,Training Costs - Learning and Staff Development,Human Resources - Training and Conferences,50.99
08/06/2023,,LB of Brent,04/04/2023,Tex Hook,Gordon Brown Outdoor Education Centre,Supplies and Services Expenditure,37.76
08/06/2023,,LB of Brent,04/04/2023,Think Ford,Gordon Brown Outdoor Education Centre,Supplies and Services Expenditure,152.72
08/06/2023,,LB of Brent,04/04/2023,Asda Groceries Online,Willows Nursery,Supplies and Services Expenditure,45.19
08/06/2023,,LB of Brent,04/04/2023,Newsquest Media Group,Registration and Nationality Service,Supplies and Services Expenditure,170.88
08/06/2023,,LB of Brent,04/04/2023,Sainsburys Wembley,Brent Family Solutions,Supplies and Services Expenditure,30.00
08/06/2023,,LB of Brent,04/04/2023,Amznmktplace,Brent Family Solutions,Supplies and Services Expenditure,53.63
08/06/2023,,LB of Brent,04/04/2023,Speedy Couriers,Brent Family Solutions,Supplies and Services Expenditure,63.00
08/06/2023,,LB of Brent,05/04/2023,Tesco Stores 2122,Short Break Centre,Supplies and Services Expenditure,58.78
08/06/2023,,LB of Brent,05/04/2023,L & M Autocare Ltd,Gordon Brown Outdoor Education Centre,Supplies and Services Expenditure,191.85
08/06/2023,,LB of Brent,05/04/2023,Amazon.Co.Uk,Brent Sicts,Information Communication Technology,39.76
08/06/2023,,LB of Brent,05/04/2023,Amznmktplace,Civic Centre Conference and Events,Stationery,35.98
08/06/2023,,LB of Brent,05/04/2023,Amznmktplace,Afghan Resettlement Scheme,Social Community Care Supplies and Services - Adult,135.41
08/06/2023,,LB of Brent,05/04/2023,Amazon.Co.Uk,Brent Family Solutions,Supplies and Services Expenditure,23.59
08/06/2023,,LB of Brent,06/04/2023,1password,IT Operations,Information Communication Technology,20.67
08/06/2023,,LB of Brent,30/03/2023,Ikea Ltd 461 Reading Expr,Gordon Brown Outdoor Education Centre,Supplies and Services Expenditure,90.00
08/06/2023,,LB of Brent,30/03/2023,Ikea Ltd 461 Reading Main,Gordon Brown Outdoor Education Centre,Supplies and Services Expenditure,"1,002.00"
08/06/2023,,LB of Brent,06/04/2023,British Gas Online,NAIL Property Management,Supplies and Services Expenditure,99.00
08/06/2023,,LB of Brent,06/04/2023,British Gas Online,NAIL Property Management,Supplies and Services Expenditure,99.00
08/06/2023,,LB of Brent,06/04/2023,British Gas Online,TA Property Management,Supplies and Services Expenditure,99.00
08/06/2023,,LB of Brent,06/04/2023,Amazon.Co.Uk,Brent Sicts,Information Communication Technology,43.48
08/06/2023,,LB of Brent,06/04/2023,Etsy.Com - Arcoalbum,Chief Execs,Stationery,130.05
08/06/2023,,LB of Brent,06/04/2023,Www.Argos.Co.Uk,Syrian Refugees Project,Social Community Care Supplies and Services - Adult,138.95
08/06/2023,,LB of Brent,06/04/2023,British Gas Online,NAIL Property Management,Supplies and Services Expenditure,99.00
08/06/2023,,LB of Brent,07/04/2023,Amazon Prime,Brent Sicts,Information Communication Technology,8.99
08/06/2023,,LB of Brent,07/04/2023,Calendly,Member Development,Financial Services,49.77
08/06/2023,,LB of Brent,08/04/2023,Tesco Stores 2122,Short Break Centre,Supplies and Services Expenditure,108.58
08/06/2023,,LB of Brent,08/04/2023,Amz,Traffic Management Act 2004,Supplies and Services Expenditure,-352.52
08/06/2023,,LB of Brent,08/04/2023,Amazon Prime,Childrens Social Care Business Support,Supplies and Services Expenditure,8.99
08/06/2023,,LB of Brent,08/04/2023,Premier Inn,Emergency Planning,Supplies and Services Expenditure,567.00
08/06/2023,,LB of Brent,08/04/2023,Veed.Io Basic,Campaigns and Media,Supplies and Services Expenditure,18.00
08/06/2023,,LB of Brent,09/04/2023,Amznmktplace,Warm Spaces Grants,Stationery,"2,181.15"
08/06/2023,,LB of Brent,11/04/2023,Psd - Fraud Perm. Credit,Traffic Management Act 2004,Supplies and Services Expenditure,-19.99
08/06/2023,,LB of Brent,11/04/2023,Psd - Fraud Perm. Credit,Traffic Management Act 2004,Supplies and Services Expenditure,-15.99
08/06/2023,,LB of Brent,10/04/2023,Amazon Prime,Registration and Nationality Service,Supplies and Services Expenditure,8.99
08/06/2023,,LB of Brent,11/04/2023,Stellar Communicators,Short Break Centre,Supplies and Services Expenditure,91.92
08/06/2023,,LB of Brent,11/04/2023,Stellar Communicators,Short Break Centre,Supplies and Services Expenditure,91.92
08/06/2023,,LB of Brent,11/04/2023,Stellar Communicators,Short Break Centre,Supplies and Services Expenditure,91.92
08/06/2023,,LB of Brent,11/04/2023,Ee Limited,Brent Music Service,Supplies and Services Expenditure,615.37
08/06/2023,,LB of Brent,11/04/2023,Amznmktplace,Community Engagement,Stationery,101.73
08/06/2023,,LB of Brent,11/04/2023,Posturite Ltd,Community Engagement,Stationery,"1,090.21"
08/06/2023,,LB of Brent,11/04/2023,Asda Groceries Online,Willows Nursery,Supplies and Services Expenditure,-0.19
08/06/2023,,LB of Brent,11/04/2023,Asda Groceries Online,Willows Nursery,Supplies and Services Expenditure,44.43
08/06/2023,,LB of Brent,11/04/2023,Wembley Lock & Key,Brent Family Solutions,Supplies and Services Expenditure,46.65
08/06/2023,,LB of Brent,11/04/2023,Facebk Ytzznnxhq2,Major Projects - Central,Supplies and Services Expenditure,65.10
08/06/2023,,LB of Brent,11/04/2023,Lidl Gb London,ICP Transformation Team,Supplies and Services Expenditure,13.02
08/06/2023,,LB of Brent,12/04/2023,Tesco Stores 2122,Short Break Centre,Supplies and Services Expenditure,80.88
08/06/2023,,LB of Brent,12/04/2023,Wf *uk2232782864,Gordon Brown Outdoor Education Centre,Supplies and Services Expenditure,341.96
08/06/2023,,LB of Brent,12/04/2023,Amz*pf+a,Resident Services Corporate Director,Stationery,-19.99
08/06/2023,,LB of Brent,12/04/2023,Amznmktplace,Chief Execs,Stationery,97.41
08/06/2023,,LB of Brent,12/04/2023,Amazon.Co.Uk,Digital Post Room,Stationery,291.75
08/06/2023,,LB of Brent,12/04/2023,Sainsburys S/Mkts,ICP Transformation Team,Supplies and Services Expenditure,13.50
08/06/2023,,LB of Brent,13/04/2023,British Gas Online,NAIL Property Management,Supplies and Services Expenditure,99.00
08/06/2023,,LB of Brent,13/04/2023,British Gas Online,NAIL Property Management,Supplies and Services Expenditure,99.00
08/06/2023,,LB of Brent,13/04/2023,British Gas Online,NAIL Property Management,Supplies and Services Expenditure,99.00
08/06/2023,,LB of Brent,13/04/2023,Scottish Power,NAIL Property Management,Supplies and Services Expenditure,200.00
08/06/2023,,LB of Brent,13/04/2023,Scottish Power,NAIL Property Management,Supplies and Services Expenditure,200.00
08/06/2023,,LB of Brent,13/04/2023,Www.Benross.Com,Gordon Brown Outdoor Education Centre,Supplies and Services Expenditure,842.40
08/06/2023,,LB of Brent,13/04/2023,Ao Retail Limited,Gordon Brown Outdoor Education Centre,Supplies and Services Expenditure,"1,734.00"
08/06/2023,,LB of Brent,13/04/2023,Namesco,IT Operations,Information Communication Technology,5.99
08/06/2023,,LB of Brent,14/04/2023,Amznmktplace,Civic Centre Conference and Events,Stationery,12.97
08/06/2023,,LB of Brent,14/04/2023,Solace Group,Management (Customer Services),Financial Services,250.00
08/06/2023,,LB of Brent,14/04/2023,Premier Inn,Audit and Investigations,Human Resources,102.00
08/06/2023,,LB of Brent,14/04/2023,Premier Inn,Audit and Investigations,Human Resources,132.00
08/06/2023,,LB of Brent,14/04/2023,Currys Online,Afghan Resettlement Scheme,Social Community Care Supplies and Services - Adult,269.00
08/06/2023,,LB of Brent,14/04/2023,Currys Online,Afghan Resettlement Scheme,Social Community Care Supplies and Services - Adult,419.00
08/06/2023,,LB of Brent,14/04/2023,Hmctslondoncse077,Revenues,Supplies and Services Expenditure,626.00
08/06/2023,,LB of Brent,14/04/2023,Amz*amazon Eu,Brent Family Solutions,Supplies and Services Expenditure,-5.68
08/06/2023,,LB of Brent,14/04/2023,Amz*eyes On Toes,Brent Family Solutions,Supplies and Services Expenditure,-29.85
08/06/2023,,LB of Brent,15/04/2023,Amznmktplace,Brent Family Solutions,Supplies and Services Expenditure,25.66
08/06/2023,,LB of Brent,15/04/2023,Canva* I03756-11208768,Housing Partnerships Service,Supplies and Services Expenditure,10.99
08/06/2023,,LB of Brent,16/04/2023,Tesco Stores 2122,Short Break Centre,Supplies and Services Expenditure,108.39
08/06/2023,,LB of Brent,16/04/2023,Amznmktplace,Operational Costs - Facilities,Stationery,25.98
08/06/2023,,LB of Brent,16/04/2023,Adobe Ps Creative Cld,Operational Costs - Facilities,Supplies and Services Expenditure,238.42
08/06/2023,,LB of Brent,16/04/2023,Www.Argos.Co.Uk,Afghan Resettlement Scheme,Social Community Care Supplies and Services - Adult,334.50
08/06/2023,,LB of Brent,16/04/2023,Www.Argos.Co.Uk,Afghan Resettlement Scheme,Social Community Care Supplies and Services - Adult,591.95
08/06/2023,,LB of Brent,14/04/2023,Brent Council,Single Homelessness Team,Supplies and Services Expenditure,11.00
08/06/2023,,LB of Brent,17/04/2023,British Gas Online,NAIL Property Management,Supplies and Services Expenditure,99.00
08/06/2023,,LB of Brent,17/04/2023,British Gas Online,NAIL Property Management,Supplies and Services Expenditure,99.00
08/06/2023,,LB of Brent,17/04/2023,British Gas Online,NAIL Property Management,Supplies and Services Expenditure,99.00
08/06/2023,,LB of Brent,17/04/2023,British Gas Online,NAIL Property Management,Supplies and Services Expenditure,99.00
08/06/2023,,LB of Brent,17/04/2023,Amz*amazon Us,Cemeteries Admin,Stationery,-9.82
08/06/2023,,LB of Brent,17/04/2023,Amznmktplace,Resident Services Corporate Director,Stationery,19.90
08/06/2023,,LB of Brent,17/04/2023,Euroflorist UK Ltd,Communities and Regeneration - Year End Financial Accounts,Stationery,55.48
08/06/2023,,LB of Brent,17/04/2023,Euroflorist UK Ltd,Communities and Regeneration - Year End Financial Accounts,Stationery,60.98
08/06/2023,,LB of Brent,17/04/2023,Amazon.Co.Uk,Customer Access Improvement and Performance,Stationery,109.00
08/06/2023,,LB of Brent,17/04/2023,Amznmktplace,Cemeteries Admin,Stationery,250.47
08/06/2023,,LB of Brent,17/04/2023,Asda Groceries Online,Willows Nursery,Supplies and Services Expenditure,-1.90
08/06/2023,,LB of Brent,17/04/2023,Asda Superstore 04881,Willows Nursery,Supplies and Services Expenditure,4.65
08/06/2023,,LB of Brent,17/04/2023,Asda Groceries Online,Willows Nursery,Supplies and Services Expenditure,63.27
08/06/2023,,LB of Brent,17/04/2023,Ats Carpets & Furniture,Afghan Resettlement Scheme,Social Community Care Supplies and Services - Adult,285.00
08/06/2023,,LB of Brent,17/04/2023,Www.Argos.Co.Uk,Afghan Resettlement Scheme,Social Community Care Supplies and Services - Adult,407.00
08/06/2023,,LB of Brent,17/04/2023,Amazon.Co.Uk,Leasehold Management,Stationery,14.13
08/06/2023,,LB of Brent,17/04/2023,Tesco Stores 2080,Gordon Brown Outdoor Education Centre,Supplies and Services Expenditure,184.44
08/06/2023,,LB of Brent,18/04/2023,Amznmktplace,Hr Operational,Stationery,24.95
08/06/2023,,LB of Brent,18/04/2023,Screwfix Dir Ltd,Gordon Brown Outdoor Education Centre,Supplies and Services Expenditure,230.02
08/06/2023,,LB of Brent,18/04/2023,Toolstation Uk,Willows Nursery,Supplies and Services Expenditure,15.96
08/06/2023,,LB of Brent,18/04/2023,Marks&spencer Plc,Afghan Resettlement Scheme,Social Community Care Supplies and Services - Adult,132.00
08/06/2023,,LB of Brent,18/04/2023,Currys Online,Afghan Resettlement Scheme,Social Community Care Supplies and Services - Adult,359.00
08/06/2023,,LB of Brent,18/04/2023,Hmctslondoncse077,Revenues,Supplies and Services Expenditure,66.00
08/06/2023,,LB of Brent,18/04/2023,Sainsburys Wembley,Brent Family Solutions,Supplies and Services Expenditure,20.00
08/06/2023,,LB of Brent,18/04/2023,Arena Mini Mart,Brent Family Solutions,Supplies and Services Expenditure,50.00
08/06/2023,,LB of Brent,18/04/2023,Arena Mini Mart,Brent Family Solutions,Supplies and Services Expenditure,50.00
08/06/2023,,LB of Brent,18/04/2023,Prezzee/Gb91826abb,Roundwood Youth,Supplies and Services Expenditure,100.00
08/06/2023,,LB of Brent,18/04/2023,Wilton Wholefoods,Gordon Brown Outdoor Education Centre,Supplies and Services Expenditure,37.05
08/06/2023,,LB of Brent,18/04/2023,Amznmktplace,Gordon Brown Outdoor Education Centre,Supplies and Services Expenditure,64.90
08/06/2023,,LB of Brent,18/04/2023,Amznmktplace,Gordon Brown Outdoor Education Centre,Supplies and Services Expenditure,299.94
08/06/2023,,LB of Brent,18/04/2023,Www.Argos.Co.Uk,Campaigns and Media,Supplies and Services Expenditure,15.00
08/06/2023,,LB of Brent,09/03/2023,Currys Online,Syrian Refugees Project,Supplies and Services Expenditure,-344.00
08/06/2023,,LB of Brent,19/04/2023,Brent Parking,Parish Liaison,Transport Expensiture Refund,9.00
08/06/2023,,LB of Brent,19/04/2023,Currys Customer Cont,Afghan Resettlement Scheme,Social Community Care Supplies and Services - Adult,100.00
08/06/2023,,LB of Brent,19/04/2023,Www.Argos.Co.Uk,Afghan Resettlement Scheme,Social Community Care Supplies and Services - Adult,133.95
08/06/2023,,LB of Brent,19/04/2023,Www.Argos.Co.Uk,Afghan Resettlement Scheme,Social Community Care Supplies and Services - Adult,162.75
08/06/2023,,LB of Brent,19/04/2023,Currys Online,Afghan Resettlement Scheme,Social Community Care Supplies and Services - Adult,329.00
08/06/2023,,LB of Brent,19/04/2023,Ats Carpets & Furniture,Afghan Resettlement Scheme,Supplies and Services Expenditure,438.00
08/06/2023,,LB of Brent,19/04/2023,Atlassian,Digital Comms,Supplies and Services Expenditure,10.00
08/06/2023,,LB of Brent,19/04/2023,Arena Mini Mart,Brent Family Solutions,Supplies and Services Expenditure,50.00
08/06/2023,,LB of Brent,19/04/2023,Amznmktplace,Gordon Brown Outdoor Education Centre,Supplies and Services Expenditure,67.80
08/06/2023,,LB of Brent,19/04/2023,Tesco Stores 2080,Gordon Brown Outdoor Education Centre,Supplies and Services Expenditure,164.38
08/06/2023,,LB of Brent,20/04/2023,Tesco Stores 2122,Short Break Centre,Supplies and Services Expenditure,-5.74
08/06/2023,,LB of Brent,20/04/2023,Tesco Stores 2122,Short Break Centre,Supplies and Services Expenditure,-13.70
08/06/2023,,LB of Brent,20/04/2023,Harrow Arts Centre,Short Break Centre,Supplies and Services Expenditure,15.00
08/06/2023,,LB of Brent,20/04/2023,Tesco Stores 2122,Short Break Centre,Supplies and Services Expenditure,93.38
08/06/2023,,LB of Brent,20/04/2023,Zaks Shoe Service,TA Property Management,Supplies and Services Expenditure,19.00
08/06/2023,,LB of Brent,20/04/2023,J D B Contractors And Son,Gordon Brown Outdoor Education Centre,Supplies and Services Expenditure,150.00
08/06/2023,,LB of Brent,20/04/2023,Ikea Ltd 461 Reading Main,Gordon Brown Outdoor Education Centre,Supplies and Services Expenditure,"1,012.00"
08/06/2023,,LB of Brent,20/04/2023,Leonardo Htl Belfast Fron,Brent Sicts,Information Communication Technology,230.00
08/06/2023,,LB of Brent,20/04/2023,R H Environmental Ltd,Parish Liaison,Human Resources - Training and Conferences,363.00
08/06/2023,,LB of Brent,20/04/2023,Www.Argos.Co.Uk,Syrian Refugees Project,Supplies and Services Expenditure,-35.00
08/06/2023,,LB of Brent,20/04/2023,Www.Argos.Co.Uk,Afghan Resettlement Scheme,Social Community Care Supplies and Services - Adult,381.38
08/06/2023,,LB of Brent,21/04/2023,1password,IT Operations,Information Communication Technology,18.75
08/06/2023,,LB of Brent,21/04/2023,Amznmktplace,Gordon Brown Outdoor Education Centre,Supplies and Services Expenditure,44.68
08/06/2023,,LB of Brent,21/04/2023,Amznmktplace,Gordon Brown Outdoor Education Centre,Supplies and Services Expenditure,59.96
08/06/2023,,LB of Brent,20/04/2023,Brent Council,Parish Liaison,Financial Services,44.00
08/06/2023,,LB of Brent,21/04/2023,British Gas Online,TA Property Management,Supplies and Services Expenditure,99.00
08/06/2023,,LB of Brent,21/04/2023,British Gas Online,TA Property Management,Supplies and Services Expenditure,99.00
08/06/2023,,LB of Brent,21/04/2023,British Gas Online,NAIL Property Management,Supplies and Services Expenditure,99.00
08/06/2023,,LB of Brent,21/04/2023,Scottish Power,NAIL Property Management,Supplies and Services Expenditure,200.00
08/06/2023,,LB of Brent,21/04/2023,Scottish Power,NAIL Property Management,Supplies and Services Expenditure,200.00
08/06/2023,,LB of Brent,21/04/2023,Hook - Dominos,Gordon Brown Outdoor Education Centre,Supplies and Services Expenditure,90.36
08/06/2023,,LB of Brent,21/04/2023,Www.Screwfix.Com,Gordon Brown Outdoor Education Centre,Supplies and Services Expenditure,289.97
08/06/2023,,LB of Brent,22/04/2023,British Gas Online,NAIL Property Management,Supplies and Services Expenditure,99.00
08/06/2023,,LB of Brent,22/04/2023,Poundland Ltd - 1584,Gordon Brown Outdoor Education Centre,Supplies and Services Expenditure,33.00
08/06/2023,,LB of Brent,22/04/2023,Tesco Stores 2080,Gordon Brown Outdoor Education Centre,Supplies and Services Expenditure,80.21
08/06/2023,,LB of Brent,22/04/2023,Zoom.Us 888-799-9666,Brent Music Service,Supplies and Services Expenditure,562.85
08/06/2023,,LB of Brent,23/04/2023,Tesco Stores 2122,Short Break Centre,Supplies and Services Expenditure,-1.40
08/06/2023,,LB of Brent,23/04/2023,Tesco Stores 2122,Short Break Centre,Supplies and Services Expenditure,107.89
08/06/2023,,LB of Brent,24/04/2023,Tesco Stores 2122,Short Break Centre,Supplies and Services Expenditure,-2.50
08/06/2023,,LB of Brent,24/04/2023,Zaks Shoe Service,NAIL Property Management,Supplies and Services Expenditure,3.50
08/06/2023,,LB of Brent,24/04/2023,British Gas Online,NAIL Property Management,Supplies and Services Expenditure,99.00
08/06/2023,,LB of Brent,24/04/2023,British Gas Online,NAIL Property Management,Supplies and Services Expenditure,99.00
08/06/2023,,LB of Brent,24/04/2023,L & M Autocare Ltd,Gordon Brown Outdoor Education Centre,Supplies and Services Expenditure,45.00
08/06/2023,,LB of Brent,24/04/2023,Jj Food Service - Basi,Gordon Brown Outdoor Education Centre,Supplies and Services Expenditure,374.70
08/06/2023,,LB of Brent,24/04/2023,Sp Party Crashers,Brent Music Service,Supplies and Services Expenditure,23.85
08/06/2023,,LB of Brent,24/04/2023,L B Barnet,Parish Liaison,Financial Services,22.00
08/06/2023,,LB of Brent,24/04/2023,Asda Groceries Online,Willows Nursery,Supplies and Services Expenditure,-0.21
08/06/2023,,LB of Brent,24/04/2023,Asda Groceries Online,Willows Nursery,Supplies and Services Expenditure,40.06
08/06/2023,,LB of Brent,24/04/2023,Hotjar,Digital Comms,Supplies and Services Expenditure,86.48
08/06/2023,,LB of Brent,24/04/2023,Amznmktplace,Policy (Planning),Stationery,8.99
08/06/2023,,LB of Brent,24/04/2023,Amznmktplace,Wembley Learning Zone,Supplies and Services Expenditure,394.09
08/06/2023,,LB of Brent,24/04/2023,Asda Superstore 04881,Brent Family Solutions,Supplies and Services Expenditure,12.39
08/06/2023,,LB of Brent,24/04/2023,Sainsburys Wembley,Brent Family Solutions,Supplies and Services Expenditure,20.00
08/06/2023,,LB of Brent,24/04/2023,Asda Superstore 04881,Brent Family Solutions,Supplies and Services Expenditure,40.00
08/06/2023,,LB of Brent,24/04/2023,Www.Papajohn S.Co.Uk,Brent Family Solutions,Supplies and Services Expenditure,118.54
08/06/2023,,LB of Brent,24/04/2023,Asda Superstore 04881,Brent Family Solutions,Supplies and Services Expenditure,200.00
08/06/2023,,LB of Brent,24/04/2023,Asda Superstore 04881,Brent Family Solutions,Supplies and Services Expenditure,200.00
08/06/2023,,LB of Brent,24/04/2023,Www.Argos.Co.Uk,Brent Family Solutions,Supplies and Services Expenditure,312.95
08/06/2023,,LB of Brent,24/04/2023,Amznmktplace,Gordon Brown Outdoor Education Centre,Supplies and Services Expenditure,16.99
08/06/2023,,LB of Brent,24/04/2023,Amznmktplace,Gordon Brown Outdoor Education Centre,Supplies and Services Expenditure,51.92
08/06/2023,,LB of Brent,24/04/2023,Tesco Stores 2080,Gordon Brown Outdoor Education Centre,Supplies and Services Expenditure,261.24
08/06/2023,,LB of Brent,24/04/2023,Www.Express-Cleaning-Sup,Gordon Brown Outdoor Education Centre,Supplies and Services Expenditure,358.90
08/06/2023,,LB of Brent,24/04/2023,Currys Wembley,Alternative Education - Day 6 Exclusion,Information Communication Technology,508.99
08/06/2023,,LB of Brent,25/04/2023,Amznmktplace,Customer Access Improvement and Performance,Stationery,33.99
08/06/2023,,LB of Brent,24/04/2023,Brent Council,Parish Liaison,Financial Services,11.00
08/06/2023,,LB of Brent,25/04/2023,Screwfix Dir Ltd,Gordon Brown Outdoor Education Centre,Supplies and Services Expenditure,39.14
08/06/2023,,LB of Brent,25/04/2023,Go Outdoors,Gordon Brown Outdoor Education Centre,Supplies and Services Expenditure,45.90
08/06/2023,,LB of Brent,25/04/2023,Amznmktplace,East Long-Term Team 5,Supplies and Services Expenditure,97.98
08/06/2023,,LB of Brent,25/04/2023,Www.Argos.Co.Uk,Afghan Resettlement Scheme,Social Community Care Supplies and Services - Children,54.00
08/06/2023,,LB of Brent,25/04/2023,Marks&spencer Plc,Afghan Resettlement Scheme,Supplies and Services Expenditure,241.50
08/06/2023,,LB of Brent,25/04/2023,Ikea Ltd Shop Online,Afghan Resettlement Scheme,Supplies and Services Expenditure,367.00
08/06/2023,,LB of Brent,25/04/2023,Amznmktplace,Gordon Brown Outdoor Education Centre,Supplies and Services Expenditure,16.98
08/06/2023,,LB of Brent,25/04/2023,Amznmktplace,Gordon Brown Outdoor Education Centre,Supplies and Services Expenditure,20.85
08/06/2023,,LB of Brent,25/04/2023,Www.Abaris.Co.Uk,Gordon Brown Outdoor Education Centre,Supplies and Services Expenditure,309.90
08/06/2023,,LB of Brent,26/04/2023,Hotel At Booking.Com,Emergency Planning,Facilities and Management Services,94.00
08/06/2023,,LB of Brent,25/04/2023,Bkg*hotel At Booking.C,Emergency Planning,Facilities and Management Services,194.00
08/06/2023,,LB of Brent,25/04/2023,Bkg*booking.Com Hotel,Emergency Planning,Facilities and Management Services,495.00
08/06/2023,,LB of Brent,26/04/2023,Tesco Stores 2080,Gordon Brown Outdoor Education Centre,Supplies and Services Expenditure,76.53
08/06/2023,,LB of Brent,26/04/2023,Wly,Willows Nursery,Supplies and Services Expenditure,15.00
08/06/2023,,LB of Brent,26/04/2023,Currys Online,Afghan Resettlement Scheme,Supplies and Services Expenditure,524.00
08/06/2023,,LB of Brent,26/04/2023,Intellisoftware Ltd,IT Operations,Information Communication Technology,12.00
08/06/2023,,LB of Brent,26/04/2023,Amznmktplace,Civic Centre Conference and Events,Stationery,29.05
08/06/2023,,LB of Brent,26/04/2023,Amznmktplace,Parking Schemes,Stationery,31.98
08/06/2023,,LB of Brent,26/04/2023,Companieshouse Web Filing,Legal Support,Legal Services,15.00
08/06/2023,,LB of Brent,26/04/2023,Novotel London Wemble,Emergency Planning,Facilities and Management Services,"1,200.00"
08/06/2023,,LB of Brent,26/04/2023,Novotel London Wemble,Emergency Planning,Facilities and Management Services,"1,400.00"
08/06/2023,,LB of Brent,26/04/2023,Sainsburys S/Mkts,Brent Family Solutions,Supplies and Services Expenditure,7.40
08/06/2023,,LB of Brent,26/04/2023,Asda Stores Ltd,Brent Family Solutions,Supplies and Services Expenditure,112.00
08/06/2023,,LB of Brent,27/04/2023,Tesco Stores 2122,Short Break Centre,Supplies and Services Expenditure,83.50
08/06/2023,,LB of Brent,27/04/2023,British Gas Online,NAIL Property Management,Supplies and Services Expenditure,99.00
08/06/2023,,LB of Brent,27/04/2023,British Gas Online,NAIL Property Management,Supplies and Services Expenditure,99.00
08/06/2023,,LB of Brent,27/04/2023,British Gas Online,NAIL Property Management,Supplies and Services Expenditure,99.00
08/06/2023,,LB of Brent,27/04/2023,British Gas Online,NAIL Property Management,Supplies and Services Expenditure,99.00
08/06/2023,,LB of Brent,27/04/2023,Waitrose 119,Housing Stakeholder Management,Supplies and Services Expenditure,100.00
08/06/2023,,LB of Brent,27/04/2023,Amznmktplace,Member Services,Stationery,131.92
08/06/2023,,LB of Brent,27/04/2023,Asda Groceries Online,Willows Nursery,Supplies and Services Expenditure,6.00
08/06/2023,,LB of Brent,27/04/2023,Wembley Park Express,Willows Nursery,Supplies and Services Expenditure,13.46
08/06/2023,,LB of Brent,27/04/2023,Www.Argos.Co.Uk,Afghan Resettlement Scheme,Supplies and Services Expenditure,24.00
08/06/2023,,LB of Brent,27/04/2023,Ikea Ltd Shop Online,Afghan Resettlement Scheme,Supplies and Services Expenditure,28.00
08/06/2023,,LB of Brent,27/04/2023,Www.Argos.Co.Uk,Syrian Refugees Project,Supplies and Services Expenditure,-255.00
08/06/2023,,LB of Brent,27/04/2023,Amznmktplace,Afghan Resettlement Scheme,Social Community Care Supplies and Services - Adult,399.99
08/06/2023,,LB of Brent,27/04/2023,Amznmktplace,Afghan Resettlement Scheme,Supplies and Services Expenditure,615.48
08/06/2023,,LB of Brent,27/04/2023,Www.Instantprint.C,IT Operations,Information Communication Technology,204.00
08/06/2023,,LB of Brent,27/04/2023,Amznmktplace,Communities and Regeneration - Year End Financial Accounts,Stationery,12.99
08/06/2023,,LB of Brent,27/04/2023,Llg Enterprises Ltd,Legal Support,Human Resources - Training and Conferences,522.00
08/06/2023,,LB of Brent,27/04/2023,Llg Enterprises Ltd,Legal Support,Human Resources - Training and Conferences,522.00
08/06/2023,,LB of Brent,27/04/2023,Goldcross,Health and Safety - Advisory,Human Resources - Training and Conferences,958.80
08/06/2023,,LB of Brent,27/04/2023,Zettle_*angel Cars,Emergency Planning,Passenger Transport,57.60
08/06/2023,,LB of Brent,28/04/2023,Amznmktplace,Short Break Centre,Supplies and Services Expenditure,20.98
08/06/2023,,LB of Brent,28/04/2023,Amznmktplace,Short Break Centre,Supplies and Services Expenditure,17.98
08/06/2023,,LB of Brent,28/04/2023,Amznmktplace,Short Break Centre,Supplies and Services Expenditure,21.98
08/06/2023,,LB of Brent,28/04/2023,1password,IT Operations,Information Communication Technology,17.78
08/06/2023,,LB of Brent,27/04/2023,Brent Council,Smart Team,Supplies and Services Expenditure,11.00
08/06/2023,,LB of Brent,27/04/2023,Rumbles,Afghan Resettlement Scheme,Supplies and Services Expenditure,78.94
08/06/2023,,LB of Brent,28/04/2023,Amznmktplace,Short Break Centre,Supplies and Services Expenditure,39.20
08/06/2023,,LB of Brent,28/04/2023,Lul Ticket Machine,Smart Team,Supplies and Services Expenditure,12.00
08/06/2023,,LB of Brent,28/04/2023,Scottish Power,NAIL Property Management,Supplies and Services Expenditure,100.00
08/06/2023,,LB of Brent,28/04/2023,Scottish Power,NAIL Property Management,Supplies and Services Expenditure,200.00
08/06/2023,,LB of Brent,28/04/2023,Www.Reach-Interact,Fostering Support Team B,Supplies and Services Expenditure,21.60
08/06/2023,,LB of Brent,28/04/2023,Atlassian,Public Health Operational,Supplies and Services Expenditure,109.29
08/06/2023,,LB of Brent,28/04/2023,Vivense,Afghan Resettlement Scheme,Supplies and Services Expenditure,171.38
08/06/2023,,LB of Brent,28/04/2023,Ikea Ltd Shop Online,Afghan Resettlement Scheme,Supplies and Services Expenditure,309.00
08/06/2023,,LB of Brent,28/04/2023,Tesco Stores 2122,Brent Family Solutions,Supplies and Services Expenditure,20.10
08/06/2023,,LB of Brent,28/04/2023,Costco Wholesale #128,Brent Family Solutions,Supplies and Services Expenditure,96.26
08/06/2023,,LB of Brent,28/04/2023,Asda Superstore,Brent Family Solutions,Supplies and Services Expenditure,100.45
08/06/2023,,LB of Brent,30/04/2023,Tesco Stores 2122,Short Break Centre,Supplies and Services Expenditure,105.23
08/06/2023,,LB of Brent,01/05/2023,Amznmktplace,Short Break Centre,Supplies and Services Expenditure,31.65
08/06/2023,,LB of Brent,28/04/2023,Tfl Roadchg Stdautopay,Building Cleaning,Supplies and Services Expenditure,875.00
08/06/2023,,LB of Brent,01/05/2023,Calendly,Brent Music Service,Supplies and Services Expenditure,8.28
08/06/2023,,LB of Brent,01/05/2023,Gsuite_bmsstaff.Com,Brent Music Service,Supplies and Services Expenditure,67.47
08/06/2023,,LB of Brent,01/05/2023,Canva* I03772-20378289,Fostering Support Team B,Supplies and Services Expenditure,10.99
08/06/2023,,LB of Brent,01/05/2023,Flickr Pro Monthly,Digital Comms,Supplies and Services Expenditure,6.99
08/06/2023,,LB of Brent,01/05/2023,Amznmktplace,Political Group Support,Stationery,24.69
08/06/2023,,LB of Brent,01/05/2023,Amznmktplace,Brent Family Solutions,Supplies and Services Expenditure,93.89
08/06/2023,,LB of Brent,02/05/2023,Msft * E0600n6hvw,IT Operations,Supplies and Services Expenditure,5.40
08/06/2023,,LB of Brent,02/05/2023,Lul Ticket Machine,Smart Team,Supplies and Services Expenditure,17.00
08/06/2023,,LB of Brent,02/05/2023,British Gas Online,NAIL Property Management,Supplies and Services Expenditure,99.00
08/06/2023,,LB of Brent,02/05/2023,Tex Hook,Gordon Brown Outdoor Education Centre,Supplies and Services Expenditure,50.03
08/06/2023,,LB of Brent,02/05/2023,Tex Hook,Gordon Brown Outdoor Education Centre,Supplies and Services Expenditure,50.47
08/06/2023,,LB of Brent,02/05/2023,Asda Groceries Online,Willows Nursery,Supplies and Services Expenditure,-2.00
08/06/2023,,LB of Brent,02/05/2023,Amazon Prime,Willows Nursery,Supplies and Services Expenditure,8.99
08/06/2023,,LB of Brent,02/05/2023,Asda Groceries Online,Willows Nursery,Supplies and Services Expenditure,40.75
08/06/2023,,LB of Brent,02/05/2023,Asda Groceries Online,Willows Nursery,Supplies and Services Expenditure,53.32
08/06/2023,,LB of Brent,02/05/2023,Www.Argos.Co.Uk,Afghan Resettlement Scheme,Social Community Care Supplies and Services - Adult,66.95
08/06/2023,,LB of Brent,02/05/2023,Www.Argos.Co.Uk,Afghan Resettlement Scheme,Social Community Care Supplies and Services - Adult,85.95
08/06/2023,,LB of Brent,02/05/2023,Amazon.Co.Uk,West Long-Term Team 5,Stationery,9.20
08/06/2023,,LB of Brent,02/05/2023,Asda Superstore 04881,Brent Family Solutions,Supplies and Services Expenditure,20.47
08/06/2023,,LB of Brent,02/05/2023,Asda Superstore 04881,Brent Family Solutions,Supplies and Services Expenditure,40.00
08/06/2023,,LB of Brent,02/05/2023,Amznmktplace,Gordon Brown Outdoor Education Centre,Supplies and Services Expenditure,7.58
08/06/2023,,LB of Brent,02/05/2023,Amznmktplace,Gordon Brown Outdoor Education Centre,Supplies and Services Expenditure,20.16
08/06/2023,,LB of Brent,03/05/2023,Amznmktplace,Brent Family Solutions,Supplies and Services Expenditure,22.00
08/06/2023,,LB of Brent,03/05/2023,Tesco Subscription,Short Break Centre,Supplies and Services Expenditure,47.94
08/06/2023,,LB of Brent,03/05/2023,Tesco Stores 2080,Gordon Brown Outdoor Education Centre,Supplies and Services Expenditure,109.12
08/06/2023,,LB of Brent,03/05/2023,Amznmktplace,Willows Nursery,Supplies and Services Expenditure,16.71
08/06/2023,,LB of Brent,03/05/2023,Costco Wholesale #128,Wembley Learning Zone,Supplies and Services Expenditure,65.45
08/06/2023,,LB of Brent,03/05/2023,Post Office Counter,Brent Family Solutions,Supplies and Services Expenditure,15.00
08/06/2023,,LB of Brent,04/05/2023,Tesco Stores 2122,Short Break Centre,Supplies and Services Expenditure,85.88
08/06/2023,,LB of Brent,04/05/2023,Sportsdirect.Com,Smart Team,Supplies and Services Expenditure,14.49
08/06/2023,,LB of Brent,04/05/2023,Tesco Stores 2080,Gordon Brown Outdoor Education Centre,Supplies and Services Expenditure,131.00
08/06/2023,,LB of Brent,04/05/2023,Everything Branded,Fostering Support Team B,Supplies and Services Expenditure,460.70
08/06/2023,,LB of Brent,04/05/2023,Workwear Giant Ltd,Fostering Support Team A,Supplies and Services Expenditure,266.99
08/06/2023,,LB of Brent,04/05/2023,Www.Argos.Co.Uk,Syrian Refugees Project,Supplies and Services Expenditure,-24.00
08/06/2023,,LB of Brent,04/05/2023,Amznmktplace,Heritage,Supplies and Services Expenditure,73.98
08/06/2023,,LB of Brent,04/05/2023,Find A Will,Legal Support,Legal Services,1.50
08/06/2023,,LB of Brent,04/05/2023,Find A Will,Legal Support,Legal Services,1.50
08/06/2023,,LB of Brent,04/05/2023,Amznmktplace,Gordon Brown Outdoor Education Centre,Supplies and Services Expenditure,8.07
08/06/2023,,LB of Brent,04/05/2023,Travelodge Gb0000,Bed and Breakfast,Supplies and Services Expenditure,-170.00
08/06/2023,,LB of Brent,05/05/2023,One4all,Elderly Adult Placement,Human Resources - Training and Conferences,50.00
08/06/2023,,LB of Brent,05/05/2023,One4all,Elderly Adult Placement,Human Resources - Training and Conferences,50.99
08/06/2023,,LB of Brent,05/05/2023,Voucher Express,Elderly Adult Placement,Arts and Leisure Services,52.50
08/06/2023,,LB of Brent,05/05/2023,British Gas Online,NAIL Property Management,Supplies and Services Expenditure,99.00
08/06/2023,,LB of Brent,05/05/2023,British Gas Online,NAIL Property Management,Supplies and Services Expenditure,99.00
08/06/2023,,LB of Brent,05/05/2023,British Gas Online,NAIL Property Management,Supplies and Services Expenditure,99.00
08/06/2023,,LB of Brent,05/05/2023,British Gas Online,NAIL Property Management,Supplies and Services Expenditure,99.00
08/06/2023,,LB of Brent,05/05/2023,Scottish Power,NAIL Property Management,Supplies and Services Expenditure,100.00
08/06/2023,,LB of Brent,05/05/2023,Scottish Power,NAIL Property Management,Supplies and Services Expenditure,100.00
08/06/2023,,LB of Brent,05/05/2023,Scottish Power,NAIL Property Management,Supplies and Services Expenditure,200.00
08/06/2023,,LB of Brent,05/05/2023,Homebase,Bridge Park Facilities,Supplies and Services Expenditure,37.00
08/06/2023,,LB of Brent,05/05/2023,Costco Wholesale #128,Member Services,Catering,143.90
08/06/2023,,LB of Brent,05/05/2023,High Street Vouchers,Policy (Planning),Financial Services,50.00
08/06/2023,,LB of Brent,05/05/2023,High Street Vouchers,Policy (Planning),Financial Services,50.00
08/06/2023,,LB of Brent,05/05/2023,High Street Vouchers,Policy (Planning),Financial Services,100.00
08/06/2023,,LB of Brent,05/05/2023,High Street Vouchers,Policy (Planning),Financial Services,100.00
08/06/2023,,LB of Brent,05/05/2023,Eb *project Management,Strategy and Partnerships,Financial Services,193.20
08/06/2023,,LB of Brent,05/05/2023,Www.Hotbargains.Online,Warm Spaces Grants,Stationery,201.52
08/06/2023,,LB of Brent,05/05/2023,Ikea Ltd Shop Online,Willesden Green Library Centre,Stationery,274.00
08/06/2023,,LB of Brent,05/05/2023,Asda Superstore 04881,Willows Nursery,Supplies and Services Expenditure,18.85
08/06/2023,,LB of Brent,05/05/2023,Www.Argos.Co.Uk,Syrian Refugees Project,Supplies and Services Expenditure,-26.00
08/06/2023,,LB of Brent,05/05/2023,Hmctslondoncse077,Revenues,Supplies and Services Expenditure,768.00
08/06/2023,,LB of Brent,05/05/2023,Tesco Stores 2122,Brent Family Solutions,Supplies and Services Expenditure,9.56
08/06/2023,,LB of Brent,05/05/2023,Costco Wholesale #128,Brent Family Solutions,Supplies and Services Expenditure,35.58
08/06/2023,,LB of Brent,05/05/2023,Tesco Stores 2122,Brent Family Solutions,Supplies and Services Expenditure,50.00
08/06/2023,,LB of Brent,05/05/2023,Tesco Stores 2122,Brent Family Solutions,Supplies and Services Expenditure,50.00
08/06/2023,,LB of Brent,07/05/2023,Tesco Stores 2122,Short Break Centre,Supplies and Services Expenditure,51.45
08/06/2023,,LB of Brent,07/05/2023,Amazon Prime,Brent Sicts,Information Communication Technology,8.99
08/06/2023,,LB of Brent,07/05/2023,Calendly,Member Development,Financial Services,49.20
08/06/2023,,LB of Brent,05/05/2023,Brent Council,Smart Team,Supplies and Services Expenditure,-11.00
08/06/2023,,LB of Brent,07/05/2023,"Ftc Westfield London, Gb1",Willows Nursery,Supplies and Services Expenditure,10.00
08/06/2023,,LB of Brent,08/05/2023,Wf *uk2232782864,Gordon Brown Outdoor Education Centre,Supplies and Services Expenditure,-269.97
08/06/2023,,LB of Brent,08/05/2023,Ppoint_*thakker & Sons Lt,Bridge Park Facilities,Supplies and Services Expenditure,21.00
08/06/2023,,LB of Brent,08/05/2023,Amznmktplace,Core Finance,Stationery,45.98
08/06/2023,,LB of Brent,08/05/2023,Amznmktplace,Warm Spaces Grants,Stationery,"2,935.51"
08/06/2023,,LB of Brent,08/05/2023,Amazon Prime,Childrens Social Care Business Support,Supplies and Services Expenditure,8.99
08/06/2023,,LB of Brent,08/05/2023,Veed.Io Basic,Campaigns and Media,Supplies and Services Expenditure,18.00
08/06/2023,,LB of Brent,09/05/2023,Amznmktplace,Civic Centre Conference and Events,Stationery,41.88
08/06/2023,,LB of Brent,09/05/2023,Amznmktplace,Service Management and Support Services,Supplies and Services Expenditure,13.39
08/06/2023,,LB of Brent,09/05/2023,Www.Sign-Holders.Co.Uk,Service Management and Support Services,Supplies and Services Expenditure,282.00
08/06/2023,,LB of Brent,09/05/2023,Amazon.Co.Uk,Traffic Management Act 2004,Supplies and Services Expenditure,352.52
08/06/2023,,LB of Brent,09/05/2023,Www.Local.Gov.Uk,Member Development,Consultancy,180.00
08/06/2023,,LB of Brent,09/05/2023,Amazon.Co.Uk,Accounts Payable,Stationery,34.99
08/06/2023,,LB of Brent,09/05/2023,Asda Groceries Online,Willows Nursery,Supplies and Services Expenditure,69.15
08/06/2023,,LB of Brent,09/05/2023,Www.Argos.Co.Uk,Afghan Resettlement Scheme,Social Community Care Supplies and Services - Adult,24.00
08/06/2023,,LB of Brent,09/05/2023,Intellisoftware Ltd,IT Operations,Supplies and Services Expenditure,12.00
08/06/2023,,LB of Brent,09/05/2023,Sp Patrolstore,Food Safety,Supplies and Services Expenditure,188.97
08/06/2023,,LB of Brent,10/05/2023,Amazon.Co.Uk,Cemeteries Admin,Stationery,35.70
08/06/2023,,LB of Brent,10/05/2023,Amznmktplace,Customer Access Improvement and Performance,Stationery,129.98
08/06/2023,,LB of Brent,05/05/2023,The Mj/Hemming Group L,Management (Customer Services),Financial Services,199.00
08/06/2023,,LB of Brent,10/05/2023,Asda Groceries Online,Policy (Planning),Stationery,-7.50
08/06/2023,,LB of Brent,10/05/2023,Asda Groceries Online,Policy (Planning),Stationery,11.00
08/06/2023,,LB of Brent,10/05/2023,Royal Mail Group Ltd,Service Management and Support Services,Human Resources - Training and Conferences,11.65
08/06/2023,,LB of Brent,10/05/2023,Asda Groceries Online,Policy (Planning),Stationery,18.50
08/06/2023,,LB of Brent,10/05/2023,Asda Groceries Online,Policy (Planning),Stationery,18.50
08/06/2023,,LB of Brent,10/05/2023,Royal Mail Sameday,Service Management and Support Services,Human Resources - Training and Conferences,30.00
08/06/2023,,LB of Brent,10/05/2023,Amznmktplace,Policy (Planning),Stationery,301.18
08/06/2023,,LB of Brent,11/05/2023,Sainsburys S/Mkts,Mayors Prev Yrs,Catering,5.30
08/06/2023,,LB of Brent,11/05/2023,Amznmktplace,Lewisham IT Shared Service,Information Communication Technology,131.82
08/06/2023,,LB of Brent,11/05/2023,Working Planet Payment,Climate Emergency Budget,Financial Services,718.80
08/06/2023,,LB of Brent,12/05/2023,Thenici,Chief Execs,Human Resources - Training and Conferences,350.00
08/06/2023,,LB of Brent,13/05/2023,Brent Parking,Member Services,Human Resources - Travel and Subsistence - Taxi Fares,9.00
08/06/2023,,LB of Brent,13/05/2023,Costco Wholesale #128,Mayors Prev Yrs,Catering,27.26
08/06/2023,,LB of Brent,13/05/2023,Namesco,IT Operations,Information Communication Technology,5.99
08/06/2023,,LB of Brent,15/05/2023,Amazon.Co.Uk,Chief Execs,Stationery,4.49
08/06/2023,,LB of Brent,15/05/2023,Amznmktplace,Revenues,Stationery,9.29
08/06/2023,,LB of Brent,15/05/2023,Amznmktplace,Mayors Prev Yrs,Stationery,114.00
08/06/2023,,LB of Brent,15/05/2023,Amznmktplace,Trading Standards - Brent,Stationery,55.20
08/06/2023,,LB of Brent,15/05/2023,Viking Office UK Limit,Trading Standards - Brent,Stationery,78.84
08/06/2023,,LB of Brent,15/05/2023,Amznmktplace,Pest Control,Environmental Services - Technical Equipment,97.99
08/06/2023,,LB of Brent,15/05/2023,Posturite Ltd,Learning Disabilities Team,Stationery,"1,623.29"
08/06/2023,,LB of Brent,16/05/2023,Amznmktplace,Building Consultancy,Information Communication Technology,107.96
08/06/2023,,LB of Brent,16/05/2023,The Wrens Hotel,Service Management and Support Services,Human Resources - Training and Conferences,370.00
08/06/2023,,LB of Brent,16/05/2023,Sainsburys S/Mkts,Mayors Prev Yrs,Catering,38.40
08/06/2023,,LB of Brent,16/05/2023,Amz*yangjingyue Shop,Customer Access Improvement and Performance,Stationery,-129.98
08/06/2023,,LB of Brent,16/05/2023,Harvest,IT Operations,Information Communication Technology,"5,173.93"
08/06/2023,,LB of Brent,17/05/2023,Amznmktplace,Transformation Team,Stationery,194.95
08/06/2023,,LB of Brent,17/05/2023,Hotel Ibis,Reablement - Hdt Operational,Social Community Care Supplies and Services - Adult,200.00
08/06/2023,,LB of Brent,17/05/2023,Costco Wholesale #128,Social Services Directorate,Catering,297.20
08/06/2023,,LB of Brent,17/05/2023,Amazon.Co.Uk,Transformation Team,Stationery,5.98
08/06/2023,,LB of Brent,17/05/2023,Sp Best4safety,Transformation Team,Stationery,192.00
08/06/2023,,LB of Brent,17/05/2023,L B Camden Int,Parish Liaison,Financial Services,38.00
08/06/2023,,LB of Brent,18/05/2023,1password,IT Operations,Information Communication Technology,15.21
08/06/2023,,LB of Brent,18/05/2023,Amazon.Co.Uk,Southwark IT Shared Service,Information Communication Technology,131.98
08/06/2023,,LB of Brent,18/05/2023,Viking Office UK Limit,Digital Post Room,Stationery,436.74
08/06/2023,,LB of Brent,19/05/2023,Www.Ico.Org.Uk,I4B Property Management,Financial Services,40.00
08/06/2023,,LB of Brent,19/05/2023,Amazon.Co.Uk,Brent Music Service,Stationery,285.70
08/06/2023,,LB of Brent,19/05/2023,Ikea Ltd Shop Online,Ealing Road Library,Stationery,503.00
08/06/2023,,LB of Brent,21/05/2023,Hotel Ibis,Reablement - Operational,Works - Construction Repair and Maintenance - Architect,278.00
08/06/2023,,LB of Brent,15/05/2023,Lenovo,Community and Prevention Team,Stationery,499.99
08/06/2023,,LB of Brent,22/05/2023,Amznmktplace,Customer Access Improvement and Performance,Stationery,99.98
08/06/2023,,LB of Brent,22/05/2023,Amznmktplace,Customer Access Improvement and Performance,Stationery,129.98
08/06/2023,,LB of Brent,22/05/2023,Amznmktplace,Customer Access Improvement and Performance,Stationery,129.98
08/06/2023,,LB of Brent,22/05/2023,Amznmktplace,Single Homelessness Team,Stationery,143.99
08/06/2023,,LB of Brent,22/05/2023,Amznmktplace,Transformation Team,Stationery,189.94
08/06/2023,,LB of Brent,22/05/2023,Amznmktplace,Policy Partnerships & Scrutiny,Stationery,267.79
08/06/2023,,LB of Brent,22/05/2023,Www.Argos.Co.Uk,Homes for Ukraine Scheme,Stationery,429.44
08/06/2023,,LB of Brent,22/05/2023,Posturite Ltd,Single Homelessness Team,Stationery,"1,163.96"
08/06/2023,,LB of Brent,23/05/2023,Amznmktplace,Customer Access Improvement and Performance,Stationery,143.99
08/06/2023,,LB of Brent,23/05/2023,Amznmktplace,Customer Access Improvement and Performance,Stationery,143.99
08/06/2023,,LB of Brent,23/05/2023,Weebly Service,Community Hubs,Financial Services,49.00
08/06/2023,,LB of Brent,23/05/2023,Amznmktplace,Operational Costs - Facilities,Stationery,57.99
08/06/2023,,LB of Brent,24/05/2023,Voucher Express,Social Services Directorate,Human Resources - Training and Conferences,206.95
08/06/2023,,LB of Brent,24/05/2023,One4all,Social Services Directorate,Human Resources - Training and Conferences,400.99
08/06/2023,,LB of Brent,24/05/2023,Amznmktplace,Lewisham IT Shared Service,Information Communication Technology,9.99
08/06/2023,,LB of Brent,24/05/2023,Amznmktplace,Digital Post Room,Stationery,35.98
08/06/2023,,LB of Brent,24/05/2023,Brent Parking,Parish Liaison,Financial Services,20.00
08/06/2023,,LB of Brent,25/05/2023,Amznmktplace,Southwark Sicts Consumables,Information Communication Technology,5.98
08/06/2023,,LB of Brent,25/05/2023,Amznmktplace,Core Finance,Stationery,3.87
08/06/2023,,LB of Brent,25/05/2023,Tasker On Taskrabbit,Ealing Road Library,Stationery,72.00
08/06/2023,,LB of Brent,25/05/2023,Amazon.Co.Uk,Political Group Support,Stationery,75.04
08/06/2023,,LB of Brent,25/05/2023,Find A Will,Legal Support,Legal Services,1.50
08/06/2023,,LB of Brent,26/05/2023,Amznmktplace,Civic Centre Conference and Events,Stationery,69.99
08/06/2023,,LB of Brent,26/05/2023,Amazon Prime,Customer Access Improvement and Performance,Financial Services,-37.05
08/06/2023,,LB of Brent,26/05/2023,Miro.Com,Transformation Team,Financial Services,"1,606.24"
08/06/2023,,LB of Brent,28/05/2023,Amazon.Co.Uk,Customer Access Improvement and Performance,Stationery,144.39
08/06/2023,,LB of Brent,31/05/2023,Sp Sticker It,Policy Partnerships & Scrutiny,Stationery,86.50
08/06/2023,,LB of Brent,31/05/2023,Eventbranding,Community Engagement,Financial Services,966.00
